Cogmind - Beta 15 @@@ ROGUE MODE // 2025.08.23 @ 04:44:01 Player: Naughtyusername Result: Destroyed by Y-72 Warden with Quantum Rifle Performance ------------- Evolutions (8) 4000 Regions Visited (27) 5400 Robots Destroyed (689) 3445 Value Destroyed (31878) 31878 Prototype IDs (75) 1500 Alien Tech Used (4) 800 Bonus (18069) 18069 TOTAL SCORE: 65092 Bonus ------- Triggered High Security 500 High Alert Combat Kills 11268 Follower Combat Kills 1943 Network Hubs Disabled 600 Met Data Miner 300 Met Imprinter 300 Met Zhirov 300 Built Enhanced Grunts 300 A7 Reached Mainframe 300 Met R17 at Cetus 500 Met R17 at Research 2000 Scanned by Researcher 500 Friendly Fire -742 Cogmind --------- Core Integrity 0/1450 Matter 112/300 Energy 100/100 System Corruption 29% Temperature Cool (9) Movement Core (50) Location -2/Quarantine Parts ------- > --- POWER (2) -------- (None) > --- PROPULSION (6) --- (None) > --- UTILITY (9) ------ Experimental Optical Array Advanced Target Analyzer > --- WEAPON (6) ------- (None) > --- INVENTORY (5) ---- Improved Matter Compressor (0) Medium Regenerative Plating Potential Cannon Neutron Missile Launcher Peak State ------------ > --- POWER ------------ Quantum Reactor Light Quantum Reactor > --- PROPULSION ------- High-density Centrium Wheel High-density Centrium Wheel High-density Centrium Wheel High-density Centrium Wheel High-density Centrium Wheel > --- UTILITY ---------- Experimental Cooling System Huge Storage Unit Experimental Optical Array Advanced Terrain Scan Processor Advanced Target Analyzer Experimental Core Analyzer SHELL Armor > --- WEAPON ----------- Nova Cannon KE Penetrator KE Penetrator Perforator Ragnarok Missile Launcher > --- INVENTORY -------- Light Particle Reactor Micro Antimatter Reactor Experimental Power Amplifier Matter Compressor Improved Matter Compressor Long-range Terrain Scanner Advanced Kinecellerator Improved Weapon Cycler Advanced Transmission Jammer Experimental ECM Suite Medium Regenerative Plating Medium Regenerative Plating Graphene Brace Advanced Force Field Long-range Tractor Beam Combat Drone Bay Compact HERF Cannon Potential Cannon Enhanced Gamma Bomb Array Micro-nuke Launcher Neutron Missile Launcher Neutron Missile Launcher [Rating: 205] Favorites ----------- Power Cooled Deuterium Engine Engine Cooled Deuterium Engine Power Core Micro Fission Core Reactor Light Antimatter Reactor Propulsion Medium Treads Treads Medium Treads Leg Flexi-carbon Leg Wheel Wheel Utility Huge Storage Unit Device Experimental Sensor Array Storage Huge Storage Unit Processor Advanced Targeting Computer Hackware Improved Hacking Suite Protection Improved Light Armor Plating Weapon Enhanced Autogun Energy Gun Small Laser Energy Cannon Cooled Plasma Cannon Ballistic Gun Enhanced Autogun Ballistic Cannon Mass Driver Launcher Micro-nuke Launcher Slashing Weapon Sigix Broadsword Build | -11 -10 -9 -9 -8 -7 -7 -7 -7 -6 -6 -6 -6 -5 -5 -5 -5 -5 -4 -4 -4 -4 -4 -4 -3 -3 -2 -2 ------- Run | Yrd Mat Mat Min Mat Fac Low Low Dat Pro Fac Low Zio Pro Fac Upp Upp Zhi Pro Fac Ext Cet Arc Hub Res Tes Res Qua Slots Evolved 16 | . . 2 . 2 2 . . . . 2 . . . 2 . . . . 2 . . . . 2 . 2 . Power 1 | . . . . . . . . . . . . . . . . . . . 1 . . . . . . . . Propulsion 4 | . . . . 1 1 . . . . 1 . . . 1 . . . . . . . . . . . . . Utility 7 | . . . . 1 1 . . . . 1 . . . 1 . . . . 1 . . . . . . 2 . Weapon 4 | . . 2 . . . . . . . . . . . . . . . . . . . . . 2 . . . Parts Attached 350 | 7 11 25 1 18 12 2 2 1 3 29 2 6 8 51 1 4 6 2 20 31 13 2 3 10 26 50 4 Power 43 | 1 2 3 . . 1 . . . . 1 . . . 6 . 1 1 . 3 7 1 1 . 2 5 7 1 Engine 11 | 1 1 3 . . 1 . . . . 1 . . . 4 . . . . . . . . . . . . . Core 3 | . 1 . . . . . . . . . . . . 1 . 1 . . . . . . . . . . . Reactor 29 | . . . . . . . . . . . . . . 1 . . 1 . 3 7 1 1 . 2 5 7 1 Propulsion 99 | 2 4 10 1 6 1 . 2 . 1 8 . . . 20 . . . 1 6 14 3 . . . 3 17 . Treads 57 | 1 2 2 . 6 1 . 2 . 1 8 . . . 14 . . . 1 2 3 3 . . . 3 8 . Leg 20 | . . . . . . . . . . . . . . 6 . . . . 3 11 . . . . . . . Wheel 22 | 1 2 8 1 . . . . . . . . . . . . . . . 1 . . . . . . 9 . Hover . | . . . . . . . . . . . . . . . . . . . . . . . . . . . . Flight . | . . . . . . . . . . . . . . . . . . . . . . . . . . . . Utility 98 | 2 2 2 . 6 4 2 . 1 1 13 2 6 1 12 1 2 4 . 5 3 4 1 3 3 11 7 . Device 40 | 1 . 1 . 4 1 . . . 1 5 1 1 1 8 . 1 1 . 2 . 2 1 . 1 5 3 . Storage 8 | 1 1 1 . . . . . . . . . . . 1 . . 2 . . . . . . . 1 1 . Processor 17 | . 1 . . . . 1 . . . 1 1 4 . . . . . . 2 3 . . . 1 1 2 . Hackware 10 | . . . . . . . . . . 4 . . . 1 . . . . 1 . . . 3 1 . . . Protection 23 | . . . . 2 3 1 . 1 . 3 . 1 . 2 1 1 1 . . . 2 . . . 4 1 . Artifact . | . . . . . . . . . . . . . . . . . . . . . . . . . . . . Weapon 110 | 2 3 10 . 6 6 . . . 1 7 . . 7 13 . 1 1 1 6 7 5 . . 5 7 19 3 Energy Gun 6 | 1 . . . . 2 . . . . . . . . 1 . . . . . . . . . . . 2 . Energy Cannon 7 | . . . . . . . . . . 1 . . . 1 . . . . . . . . . 1 1 2 1 Ballistic Gun 70 | 1 3 10 . 5 4 . . . 1 3 . . . 7 . 1 1 1 6 4 5 . . 3 5 10 . Ballistic Cannon 13 | . . . . . . . . . . 1 . . 3 4 . . . . . 2 . . . . . 2 1 Launcher 13 | . . . . 1 . . . . . 2 . . 4 . . . . . . 1 . . . 1 1 3 . Special Weapon . | . . . . . . . . . . . . . . . . . . . . . . . . . . . . Impact Weapon . | . . . . . . . . . . . . . . . . . . . . . . . . . . . . Slashing Weapon 1 | . . . . . . . . . . . . . . . . . . . . . . . . . . . 1 Piercing Weapon . | . . . . . . . . . . . . . . . . . . . . . . . . . . . . Special Melee Weapon . | . . . . . . . . . . . . . . . . . . . . . . . . . . . . Unidentified Prototypes 47 | . . 1 . 2 2 . . . . 2 . 3 4 4 . . 4 . 3 . 3 . . 5 7 5 2 Corrupted Parts 1 | . . . . . . . . . . . . . . . . . . . . . 1 . . . . . . System Corruption 2 | . . . . . . . . . . . . . . . . . . . . . 2 . . . . . . Parts Lost 121 | . 6 3 . 3 1 . . . 2 11 . . 1 16 2 . . 3 9 5 . . . . 14 40 5 Power 19 | . 2 . . . 1 . . . . . . . . 2 1 . . . 1 2 . . . . 4 5 1 Propulsion 33 | . 2 2 . . . . . . . 3 . . 1 8 . . . 1 4 . . . . . . 10 2 Utility 20 | . 1 . . 2 . . . . 1 4 . . . . . . . 1 . 2 . . . . 1 7 1 Weapon 49 | . 1 1 . 1 . . . . 1 4 . . . 6 1 . . 1 4 1 . . . . 9 18 1 Highest Loss Streak 14 | . 5 1 . 1 1 . . . 2 4 . . 1 5 2 . . 3 2 2 . . . . 5 14 5 To Critical Strikes 2 | . . . . . . . . . . 1 . . . . . . . . 1 . . . . . . . . Average Backups 22 | 2 4 18 24 23 24 25 24 25 25 23 21 23 23 23 23 22 22 21 23 23 23 23 24 23 20 21 4 Power 1 | . 1 3 2 2 1 1 1 1 1 . 1 1 1 . 1 . . 1 1 . 1 2 2 1 . 1 . Propulsion 2 | 1 3 9 12 3 4 5 5 5 5 2 1 . . . 1 1 1 . . 2 . . . . . . . Utility 13 | . . 4 7 11 12 13 14 15 15 15 15 16 16 16 15 15 15 14 14 13 13 14 16 16 13 12 2 Weapon 4 | . . 1 2 5 5 5 3 3 3 2 3 5 4 4 4 4 4 3 5 3 5 5 4 4 5 5 2 Tool/Special . | . . . . . . . . . . . . . . . . . . . . . . . . . . . . Unused Backups 64 | . . 6 3 9 3 . 2 . . 4 . 3 . 6 1 . 1 . 1 3 5 4 . 5 3 5 . Power 9 | . . 2 . . 2 . . . . . . . . 1 . . . . . 1 . . . . 1 2 . Propulsion 14 | . . 4 1 4 . . . . . . . . . 1 1 . . . . 2 . . . . . 1 . Utility 29 | . . . 2 3 1 . 2 . . 4 . 3 . 2 . . 1 . . . 4 3 . 2 2 . . Weapon 10 | . . . . 1 . . . . . . . . . 2 . . . . 1 . 1 1 . 2 . 2 . Tool/Special 2 | . . . . 1 . . . . . . . . . . . . . . . . . . . 1 . . . Average Slot Usage (%) 91 | . 94 98 100 99 99 100 100 72 100 99 99 98 98 86 82 81 58 81 90 93 84 84 84 84 81 80 33 Engine 4 | . 10 10 11 9 7 7 7 7 7 6 6 6 6 2 5 . . . . . . . . . . . . Reactor 2 | . . . . . . . . . . . . . . 1 . . 3 5 9 9 10 10 10 9 8 6 . Treads 20 | . 14 3 . 25 30 30 30 30 30 33 33 33 31 21 17 17 17 17 12 8 15 15 15 14 14 14 . Leg 1 | . . . . . . . . . . . . . . 2 . . . . 7 16 . . . . . . . Wheel 2 | . 12 18 22 1 . . . . . . . . . . . . . . . . . . . . . 7 10 Device 7 | . 9 7 11 9 9 14 15 15 9 6 10 8 5 6 5 4 6 4 6 9 7 10 . 1 7 7 8 Storage 6 | . 14 11 11 9 7 7 7 7 7 6 6 6 6 5 5 5 5 5 5 5 5 5 5 4 4 4 . Processor 11 | . . 3 . . . 7 7 7 7 6 12 17 20 17 17 17 17 17 20 20 18 15 15 15 12 12 8 Hackware 1 | . . . . . . . . . . 5 . . . 1 . . . . . . . . 14 11 2 . . Protection 3 | . . . . 8 12 . . . 4 5 1 . . 1 5 5 3 5 3 1 4 5 . . 4 4 . Energy Cannon 1 | . . . . . . . . . . 1 6 5 2 3 . . . 3 2 1 . . . . 2 3 . Ballistic Gun 21 | . 16 42 44 36 29 29 28 3 29 22 20 18 13 9 11 17 . 17 18 16 20 21 20 26 21 13 . Ballistic Cannon 1 | . . . . . . . . . . 1 . . 9 6 11 5 . . . 2 . . . . . 1 2 Peak Build Rating 205 | 7 9 21 22 45 61 61 61 61 62 75 77 81 89 118 112 112 116 118 139 129 166 165 164 180 184 205 124 Average Rating 92 | 4 7 17 21 39 53 60 60 45 59 67 72 77 81 102 110 111 89 116 132 120 148 164 157 173 167 180 80 On Entrance 84 | . 7 9 21 22 45 61 61 61 57 56 75 74 76 77 108 100 112 114 116 122 122 164 164 158 178 156 60 Naked Turns . | . . . . . . . . . . . . . . . . . . . . . . . . . . . . Heaviest Build 213 | 11 27 102 102 104 118 112 106 109 112 122 118 113 129 144 127 120 133 137 148 139 151 152 152 158 164 213 34 Greatest Support 240 | 16 20 40 22 66 80 80 80 80 88 140 140 140 134 210 210 210 210 210 210 186 240 240 240 240 240 225 60 Greatest Overweight (x) 18 | . 2 9 4 3 1 1 1 1 1 1 . . 1 6 . . . . 2 1 . . . . . 18 6 Average Overweight (x) . | . 1 3 4 1 1 1 1 1 1 . . . . . . . . . . . . . . . . 1 . Largest Inventory Capacity 25 | 8 15 25 25 25 25 25 25 25 25 25 25 25 25 25 25 25 25 25 25 25 25 25 25 25 25 25 5 Average Capacity 24 | 7 14 22 25 25 25 25 25 25 25 25 25 25 25 25 25 25 25 25 25 25 25 25 25 25 25 24 5 Most Carried 25 | 3 7 25 25 25 25 25 25 25 25 25 25 25 25 25 25 25 25 25 25 25 25 25 25 25 25 25 5 Average Carried 23 | 2 4 18 24 24 24 25 24 25 24 23 22 24 24 24 24 24 24 22 24 24 24 24 25 24 24 24 5 Final Capacity 25 | 8 15 25 25 25 25 25 25 25 25 25 25 25 25 25 25 25 25 25 25 25 25 25 25 25 25 5 5 Final Carried 25 | 3 6 25 25 25 25 25 25 25 23 21 25 25 25 25 25 25 25 22 25 25 25 25 25 25 25 5 5 Class Distribution -------------------- 25% | Tank 25% | Gunner 12% | Scavenger-Executioner 11% | Skirmisher 10% | Scavenger-Gunner 4% | Mutant 3% | Scavenger-Tank Dominant Class ---------------- Mutant | -10/Materials Gunner | -9/Materials Gunner | -9/Mines Tank | -8/Materials Tank | -7/Factory Skirmisher | -7/Lower Caves Skirmisher | -7/Lower Caves Mutant | -7/Data Miner Tank | -6/Proximity Caves Gunner | -6/Factory Skirmisher | -6/Lower Caves Gunner | -6/Zion Gunner | -5/Proximity Caves Gunner | -5/Factory Tank | -5/Upper Caves Tank | -5/Upper Caves Mutant | -5/Zhirov Tank | -4/Proximity Caves Scavenger-Skirmisher | -4/Factory Scavenger-Gunner | -4/Extension Scavenger-Tank | -4/Cetus Scavenger-Gunner | -4/Archives Scavenger-Gunner | -4/Hub_04(d) Scavenger-Executioner | -3/Research Scavenger-Executioner | -3/Testing Scavenger-Executioner | -2/Research Mutant | -2/Quarantine Resources | -11 -10 -9 -9 -8 -7 -7 -7 -7 -6 -6 -6 -6 -5 -5 -5 -5 -5 -4 -4 -4 -4 -4 -4 -3 -3 -2 -2 ----------- Run | Yrd Mat Mat Min Mat Fac Low Low Dat Pro Fac Low Zio Pro Fac Upp Upp Zhi Pro Fac Ext Cet Arc Hub Res Tes Res Qua Matter Collected 32665 | 263 128 2013 235 1766 993 141 166 . 759 1856 68 314 2508 4603 167 181 250 561 2228 2020 329 816 215 887 3194 5922 82 Remotely 7521 | . . . . . 149 . . . . 67 . . 121 2489 122 . . . 527 115 . 510 . . 429 2992 . Salvage Created 35360 | 67 367 2341 276 2316 1322 56 124 . 721 1681 169 . 931 5119 97 127 . 438 2793 2011 274 469 484 1497 3621 7977 82 Parts 1724 | 7 32 169 25 134 81 3 . . 44 80 2 . 29 234 7 3 . 13 132 87 14 33 19 64 142 367 3 Haulers Intercepted 38 | . 1 6 . 6 4 . . . . . . . . 5 . . . . 3 . . . . 4 1 8 . Recyclers Shooed 10 | 1 . . . . . . . . . 4 . . . 1 . . . . . . . . . . . 4 . Parts Field Recycled . | . . . . . . . . . . . . . . . . . . . . . . . . . . . . Retrieved Matter . | . . . . . . . . . . . . . . . . . . . . . . . . . . . . Parts Self-Destructed 107 | . . . . . . 3 6 . 42 . 2 . 34 . 7 3 . 10 . . . . . . . . . Prevented . | . . . . . . . . . . . . . . . . . . . . . . . . . . . . Kills | -11 -10 -9 -9 -8 -7 -7 -7 -7 -6 -6 -6 -6 -5 -5 -5 -5 -5 -4 -4 -4 -4 -4 -4 -3 -3 -2 -2 ------- Run | Yrd Mat Mat Min Mat Fac Low Low Dat Pro Fac Low Zio Pro Fac Upp Upp Zhi Pro Fac Ext Cet Arc Hub Res Tes Res Qua Combat Hostiles Destroyed 511 | . 10 42 7 37 21 1 . . 17 28 . . 10 69 2 2 . 14 28 28 4 1 6 20 51 112 1 Melee 2 | . . . . . . . . . . . . . . . . . . . . . . . 1 . . . 1 Guns 342 | . 10 40 7 37 19 1 . . 12 18 . . 1 42 2 2 . 3 26 19 4 1 5 20 34 39 . Cannons 74 | . . . . . . . . . . 5 . . 9 26 . . . 1 1 1 . . . . . 31 . AOE 91 | . . 2 . . 1 . . . 5 5 . . . 1 . . . 10 . 8 . . . . 17 42 . Classes Destroyed 26 | 1 4 6 1 1 2 . . . 2 1 . . 1 1 . . . 1 . . . . . 2 3 . . Worker 29 | . 2 7 1 2 . . . . . 1 . . . 1 . . . . 2 2 . . 1 2 1 7 . Builder 39 | . . 6 . 3 1 . . . . . . . . 7 . . . . 4 1 . . . 1 . 16 . Tunneler 8 | 3 . . 2 . . . . . . 1 . . . . . . . . . . . . . . . 2 . Hauler 38 | . 1 6 . 6 4 . . . . . . . . 5 . . . . 3 . . . . 4 1 8 . Recycler 22 | . . 1 . . 1 . . . . 4 . . . 5 . . . . 2 3 . . . . . 6 . Carrier 1 | . . . . . . . . . . . . . . . . . . . . . . . . . 1 . . Mechanic 3 | . . . . . . . . . . 1 . . . . . . . . . . . . . . . 2 . Operator 11 | . . 1 . . . . . . . 1 . . . 1 . . . . . . . 8 . . . . . Drone 2 | . . . . . . . . . 2 . . . . . . . . . . . . . . . . . . Watcher 21 | . . 4 . 4 . . . . . 2 . . . 2 . . . . 1 1 . . 1 . 2 4 . Swarmer 85 | . 6 10 3 3 3 . . . 5 11 . . . . . . . 10 . 8 . . . 12 . 14 . Saboteur 4 | . . . . . . . . . . . . . . . . . . . . . . . . . 2 2 . Grunt 207 | . 4 21 3 25 7 . . . 3 7 . . . 29 . 2 . 3 12 11 . . 4 2 29 45 . Brawler 16 | . . 1 . 1 . . . . 1 . . . . 5 . . . . . . . . . . 5 3 . Duelist 10 | . . . 1 . . . . . 2 . . . . 2 . . . 1 . . . . . . 2 2 . Protector 12 | . . . . . . . . . 1 . . . 3 3 . . . . . . . . . . 1 4 . Researcher 1 | . . . . . . . . . . . . . . . . . . . . . . . . . 1 . . Sentry 60 | . . 10 . 7 4 . . . 2 3 . . 1 5 . . . . 4 6 . 1 2 . 4 10 1 Demolisher 5 | . . . . . . . . . . . . . 4 . . . . . . . . . . 1 . . . Specialist 4 | . . . . . . . . . . . . . . 2 . . . . . . . . . . . 2 . Hunter 28 | . . . . . 2 1 . . . 1 . . 2 6 2 . . . 4 2 . . . . 2 6 . Programmer 65 | . . . . . 5 . . . 1 5 . . 1 16 . . . . 8 . . . . . 5 24 . Heavy 3 | . . . . 1 . . . . . 1 . . . 1 . . . . . . . . . . . . . Cetus Guard 4 | . . . . . . . . . . . . . . . . . . . . . 4 . . . . . . Enhanced Grunt 1 | . . . . . . . . . . . . . . . . . . . . . . . . 1 . . . Investigator 1 | . . . . . . . . . . . . . . . . . . . . . . . . . . 1 . Striker 4 | . . . . . . . . . . . . . . . . . . . . . . . . 4 . . . Executioner 1 | . . . . . . . . . . . . . . . . . . . . . . . . 1 . . . Protovariant D 1 | . . . . . . . . . . . . . . . . . . . . . . . . . 1 . . Samaritan 1 | . . . . . . . . . . . . . . . . . . 1 . . . . . . . . . Butcher 3 | . . . . . . . . . . . . . . . . . . . . 2 . 1 . . . . . Best Kill Streak 45 | 2 6 9 3 6 4 1 . . 5 4 . . 1 12 2 2 . 5 7 7 2 6 4 6 22 45 1 Combat Bots Only 36 | . 6 6 3 5 4 1 . . 5 4 . . 1 8 2 2 . 5 7 7 2 1 4 6 21 36 1 Max Kills in Single Turn 8 | 1 2 2 2 2 2 1 . . 3 3 . . 1 2 1 1 . 3 3 4 1 1 2 3 7 8 1 Gunslinging 1 | . . . 1 . 1 . . . 1 . . . . . . . . . . . . . . 1 1 . . Exploded 7 | . . 2 . . 1 . . . 3 3 . . . 1 . . . 3 . 4 . . . . 7 5 . Melee 1 | . . . . . . . . . . . . . . . . . . . . . . . 1 . . . 1 Uniques/NPCs Destroyed . | . . . . . . . . . . . . . . . . . . . . . . . . . . . . Combat | -11 -10 -9 -9 -8 -7 -7 -7 -7 -6 -6 -6 -6 -5 -5 -5 -5 -5 -4 -4 -4 -4 -4 -4 -3 -3 -2 -2 -------- Run | Yrd Mat Mat Min Mat Fac Low Low Dat Pro Fac Low Zio Pro Fac Upp Upp Zhi Pro Fac Ext Cet Arc Hub Res Tes Res Qua Hostile Shots Fired 2881 | . 87 128 23 83 162 4 . . 67 200 . . 42 378 20 1 . 46 252 97 3 . 14 32 232 947 63 Missed 833 | . 12 38 3 22 53 . . . 17 54 . . 10 107 9 . . 11 65 34 1 . 6 12 55 309 15 Hits 2048 | . 75 90 20 61 109 4 . . 50 146 . . 32 271 11 1 . 35 187 63 2 . 8 20 177 638 48 Melee 47 | . . . 1 1 . . . . 5 . . . . 2 . . . 8 . . . . . . 6 24 . Projectile 2001 | . 75 90 19 60 109 4 . . 45 146 . . 32 269 11 1 . 27 187 63 2 . 8 20 171 614 48 AOE 22 | . . . . . . . . . . . . . 9 . . . . . . . . . . 2 10 1 . Critical Strikes 87 | . . 2 . 6 4 . . . 3 6 . . . 14 . 1 . . 10 3 1 . 1 1 8 27 . Actively Blocked 30 | . . . . 2 . . . . . . . . . . . . . . . 3 1 . . . 5 19 . Part Disruptions 12 | . . . . . . . . . . . . . . 3 . . . . . . . . . . . 9 . Actively Blocked 3 | . . . . . . . . . . . . . . 1 . . . . . . . . . . . 2 . Damage Taken 40962 | . 711 1137 218 1101 1260 110 . . 1056 2078 . . 799 5587 209 18 . 725 3470 1348 39 . 159 657 4849 14170 1261 Core 3402 | . 143 78 62 34 12 . . . 192 74 . . 81 421 16 . . 61 347 102 12 . . . 384 881 502 Absorbed by Shields 1597 | . . . . . . . . . . . . . . . . . . . . 54 38 . . . . 1505 . Reduced by Siege Mode 13 | . . . . . . . . . . . . . . . . . . . 13 . . . . . . . . Redirected to Shielding 200 | . . . . 100 . . . . . 100 . . . . . . . . . . . . . . . . . Ignored by Resistances 104 | . . . . . . . . . . . . . . . . . . 30 74 . . . . . . . . Regen/Repaired (Parts) 5662 | . 35 71 . 24 . . . . . 516 . . . . . . . . 496 . . . . 23 193 4264 40 Core Remaining (%) 70 | 100 42 . 65 93 . . . . 70 . . . 81 . . . . 50 . . . . 59 . 70 . . Volleys Fired 1455 | 8 38 117 15 99 56 5 5 . 35 103 14 2 126 206 4 8 . 21 112 58 27 17 12 33 92 236 6 Largest 6 | 2 2 4 4 4 4 4 4 . 4 4 1 1 4 4 4 4 . 4 4 4 4 4 4 6 6 6 1 Hottest 333 | 60 60 92 92 100 110 103 103 . 103 120 35 35 167 238 160 148 . 140 140 162 136 140 140 213 250 333 54 Shots Fired 4512 | 16 76 446 60 393 209 12 18 . 129 299 14 2 331 571 17 32 . 43 359 196 57 65 31 178 348 605 5 Gun 3652 | 16 76 446 60 392 209 9 17 . 125 245 . . 143 326 9 24 . 27 322 155 40 65 26 177 317 426 . Cannon 789 | . . . . . . . . . . 49 14 2 188 245 8 8 . 9 37 38 17 . 5 1 21 142 5 Launcher 71 | . . . . 1 . 3 1 . 4 5 . . . . . . . 7 . 3 . . . . 10 37 . Special . | . . . . . . . . . . . . . . . . . . . . . . . . . . . . Kinetic 4054 | 8 38 446 60 392 195 9 17 . 125 268 . . 298 494 17 32 . 27 322 193 40 65 26 177 317 483 5 Thermal 368 | 8 38 . . . . . . . . 26 14 2 33 77 . . . 9 37 . 17 . 5 1 21 80 . Explosive 71 | . . . . 1 . 3 1 . 4 5 . . . . . . . 7 . 3 . . . . 10 37 . Electromagnetic 19 | . . . . . 14 . . . . . . . . . . . . . . . . . . . . 5 . Robot Hit Streak 32 | 6 16 20 6 14 12 2 6 . 20 14 4 . 32 26 5 7 . 13 23 17 10 6 21 12 17 24 . Robot Miss Streak 13 | 3 4 9 5 5 2 2 1 . 3 3 2 . 4 7 1 1 . 6 4 4 3 4 2 3 3 13 . Penetration Max 2 | . . . . . . . . . . 1 . . 1 1 . 1 . . 2 1 . 1 1 1 2 1 . Secondary Targets 80 | . 1 6 3 7 4 . . . 3 7 . . . 9 . . . . 8 6 . . . 6 12 8 . Max Gunslinging Chain 2 | . 1 1 2 1 1 . . . 1 1 . . . 1 . . . . 1 1 . . . 2 1 1 . Shots Hit Robots 2658 | 10 51 244 20 233 134 4 10 . 86 198 7 . 177 338 9 15 . 23 219 139 26 37 23 92 205 354 4 Core Hits 1473 | 4 23 103 13 100 54 3 2 . 37 75 3 . 81 170 5 4 . 23 95 85 14 23 16 52 131 355 2 Critical Kills 131 | . . . . 1 . . . . 1 1 . . 5 19 1 . . . 5 9 3 4 3 11 23 45 . Critical Parts Destroyed 122 | . . 1 . . . . . . . . . . 5 11 . 1 . . 5 8 . 6 2 11 24 48 . Critical Strikes 287 | . . 1 . 1 1 . . . 2 1 . . 16 38 2 1 . . 10 20 3 10 5 23 56 95 2 Meltdown 3 | . . . . . . . . . . 1 . . . 1 . . . . 1 . . . . . . . . Destroy 269 | . . 1 . 1 . . . . 2 . . . 12 30 1 1 . . 9 20 3 10 5 23 56 95 . Blast 12 | . . . . . . . . . . . . . 4 7 1 . . . . . . . . . . . . Corrupt 1 | . . . . . 1 . . . . . . . . . . . . . . . . . . . . . . Sever 2 | . . . . . . . . . . . . . . . . . . . . . . . . . . . 2 Melee Attacks 5 | . . . . . . . . . . . . . . . . . . . . . . . . . . . 5 Impact . | . . . . . . . . . . . . . . . . . . . . . . . . . . . . Slashing 5 | . . . . . . . . . . . . . . . . . . . . . . . . . . . 5 Piercing . | . . . . . . . . . . . . . . . . . . . . . . . . . . . . Sneak Attacks . | . . . . . . . . . . . . . . . . . . . . . . . . . . . . Combat Hostiles . | . . . . . . . . . . . . . . . . . . . . . . . . . . . . Follow-up Attacks . | . . . . . . . . . . . . . . . . . . . . . . . . . . . . Damage Inflicted 83749 | 93 496 3329 325 3788 2549 56 202 . 1827 4722 229 . 2929 11686 157 357 . 2333 5269 4823 707 1166 812 2970 9059 23542 323 Guns 49018 | 93 494 3148 325 3744 2499 56 202 . 1526 3124 . . 1248 6350 117 265 . 309 4931 2959 684 1166 739 2970 5110 6959 . Cannons 10609 | . . . . . . . . . . 851 229 . 1681 4812 40 92 . 221 285 588 23 . . . 111 1676 . Explosions 23492 | . . 181 . . 50 . . . 301 692 . . . 515 . . . 1788 . 1276 . . . . 3838 14851 . Melee 323 | . . . . . . . . . . . . . . . . . . . . . . . . . . . 323 Ramming 307 | . 2 . . 44 . . . . . 55 . . . 9 . . . 15 53 . . . 73 . . 56 . Kinetic 55864 | 41 220 3148 325 3744 2268 56 202 . 1526 3419 . . 2929 10230 157 357 . 309 4931 3547 684 1166 739 2970 5110 7786 . Thermal 4482 | 52 274 . . . . . . . . 763 229 . . 1260 . . . 221 285 . 23 . . . 576 799 . Explosive 22442 | . . 181 . . . . . . 301 485 . . . 187 . . . 1788 . 1276 . . . . 3373 14851 . Electromagnetic 331 | . . . . . 281 . . . . . . . . . . . . . . . . . . . . 50 . Impact . | . . . . . . . . . . . . . . . . . . . . . . . . . . . . Slashing 323 | . . . . . . . . . . . . . . . . . . . . . . . . . . . 323 Piercing . | . . . . . . . . . . . . . . . . . . . . . . . . . . . . Highest Corruption 29 | . . . . . 4 4 4 4 4 1 1 1 . 6 6 6 6 . 8 11 13 13 17 . 13 29 29 Average Corruption 6 | . . . . . 3 4 4 4 4 1 1 1 . 4 6 6 4 . 4 8 12 13 13 . 6 12 29 Corruption Purged 6 | . . . . . . . . . . . . . . . . . 6 . . . . . . . . . . Corruption Blocked . | . . . . . . . . . . . . . . . . . . . . . . . . . . . . Effects 507 | . . . . . 11 14 23 7 39 5 6 . . 67 19 20 5 . 30 66 29 17 15 . 18 103 13 Message Errors 125 | . . . . . 3 7 4 3 11 1 1 . . 16 9 4 1 . 11 12 4 6 4 . 4 22 2 Matter Fused 106 | . . . . . 2 . 8 . 14 3 3 . . 13 1 4 2 . 8 16 8 3 . . 2 16 3 Heat Flow Errors 57 | . . . . . 1 2 3 . 4 . 1 . . 4 . 2 1 . 4 9 8 3 1 . 2 11 1 Energy Discharges 50 | . . . . . . 1 3 1 1 . 1 . . 8 . 2 . . 4 9 5 1 2 . 3 9 . Parts Rejected 6 | . . . . . . . . . . . . . . 1 . . . . . 1 . . . . 1 3 . Parts Fused 3 | . . . . . . . . . . . . . . . 1 . 1 . 1 . . . . . . . . Data Loss (minor) 52 | . . . . . 1 2 4 2 1 1 . . . 9 5 4 . . . 7 2 1 1 . 5 5 2 Data Loss (major) 22 | . . . . . 1 1 . 1 1 . . . . 6 1 3 . . 1 1 2 . 2 . . 2 . Misfires 24 | . . . . . 1 1 1 . 3 . . . . 5 1 . . . 1 5 . . 1 . 1 4 . Alerts 12 | . . . . . . . . . 2 . . . . 1 1 1 . . . 2 . . 3 . . 2 . Misdirections 11 | . . . . . . . . . . . . . . . . . . . . . . . 1 . . 6 4 Weapon Failures 39 | . . . . . 2 . . . 2 . . . . 4 . . . . . 4 . 3 . . . 23 1 Overload Shots 6 | . . . . . . . . . . 4 . . . . . . . . . . 1 . . . 1 . . Effects 2 | . . . . . . . . . . 1 . . . . . . . . . . 1 . . . . . . Energy Bleed 1 | . . . . . . . . . . 1 . . . . . . . . . . . . . . . . . Short Circuit 1 | . . . . . . . . . . . . . . . . . . . . . 1 . . . . . . Overflow Damage 2114 | . . . . 6 . . . . . 290 28 . 60 330 . 4 . 131 . 54 . . . . 192 1019 . Projectiles 553 | . . . . . . . . . . 87 28 . 60 284 . 4 . 49 . 5 . . . . . 36 . Explosions 1547 | . . . . . . . . . . 203 . . . 46 . . . 74 . 49 . . . . 192 983 . Melee 14 | . . . . 6 . . . . . . . . . . . . . 8 . . . . . . . . . Knockbacks 58 | . . . . 1 . . . . . 2 . . 4 20 1 . . . 1 4 . . . . . 25 . Impact 3 | . . . . 1 . . . . . . . . . . . . . . 1 . . . . . . 1 . Kinetic 54 | . . . . . . . . . . 2 . . 4 20 1 . . . . 4 . . . . . 23 . Secondary 1 | . . . . . . . . . . . . . . . . . . . . . . . . . . 1 . Self-Inflicted Damage 1038 | . . 114 . . 76 38 . . . 125 . . . 99 . . . . . . . . . . 61 525 . Shots 14 | . . 1 . . 2 1 . . . 2 . . . 1 . . . . . . . . . . 1 6 . Rammed 27 | . 1 . . 6 . . . . . 5 . . . 1 . . . 1 6 . . . 2 . . 5 . Targets Rammed 29 | . 1 . . 6 . . . . . 6 . . . 1 . . . 1 6 . . . 2 . . 6 . Kicked . | . . . . . . . . . . . . . . . . . . . . . . . . . . . . Crushed 2 | . . . . . . . . . . 1 . . . . . . . . . . . . . . . 1 . Highest Temperature 505 | 20 194 398 5 340 242 209 218 . 465 341 200 . 230 505 272 267 136 18 270 255 268 252 93 56 341 311 105 Average Temperature 72 | 15 63 49 4 71 60 67 53 . 49 103 109 . 54 103 134 98 92 9 49 59 83 61 12 20 88 82 55 Received Heat Transfer 6260 | . 162 411 60 540 276 . . . 470 357 . . 12 1404 9 27 . 24 261 196 . . 9 45 603 1214 180 Effects 14 | . . 2 . . . . . . . . . . . 6 . . . . . . . . . . 5 1 . Shutdowns 1 | . . 1 . . . . . . . . . . . . . . . . . . . . . . . . . Energy Bleed 2 | . . 1 . . . . . . . . . . . . . . . . . . . . . . . 1 . Interference 7 | . . . . . . . . . . . . . . 2 . . . . . . . . . . 5 . . Damage (major) 4 | . . . . . . . . . . . . . . 4 . . . . . . . . . . . . . Siege Activations 2 | . . . . . . . . . . . . . . 1 . . . . 1 . . . . . . . . Total Turns 22 | . . . . . . . . . . . . . . 6 . . . . 16 . . . . . . . . Longest Duration 16 | . . . . . . . . . . . . . . 6 . . . . 16 . . . . . . . . Martial Activations . | . . . . . . . . . . . . . . . . . . . . . . . . . . . . Shielding Activations . | . . . . . . . . . . . . . . . . . . . . . . . . . . . . Robots Disrupted 2 | . . . . . 1 . . . . . . . . . . . . . . . . . . . 1 . . Combat Hostiles 2 | . . . . . 1 . . . . . . . . . . . . . . . . . . . 1 . . Robots Corrupted 3 | . . . . 1 1 . . . . . . . . . . . . 1 . . . . . . . . . Combat Hostiles 1 | . . . . . 1 . . . . . . . . . . . . . . . . . . . . . . Parts Fried 8 | . . . . 3 4 . . . . . . . . . . . . 1 . . . . . . . . . Impact Corruptions 2 | . . . . 1 . . . . . . . . . . . . . 1 . . . . . . . . . Robots Melted 3 | . . . . . . . . . . 1 . . . 1 . . . . 1 . . . . . . . . Combat Hostiles 1 | . . . . . . . . . . . . . . . . . . . 1 . . . . . . . . Parts Melted 10 | . 1 . . . . . . . . 1 . . . 1 . . . . 3 . . . . 1 1 2 . Heat Transferred 5705 | 125 625 . . . . . . . . 900 350 . . 1422 . . . 350 400 . 26 . . . 600 907 . Parts Sabotaged 3 | . . . . . . . . . . . . . . . . . . . . . . . . . 3 . . Parts Stolen . | . . . . . . . . . . . . . . . . . . . . . . . . . . . . Parts Stripped . | . . . . . . . . . . . . . . . . . . . . . . . . . . . . Power Chain Reactions 4 | . . . . . 2 . . . . . . . . . . . . . . . . . . . 2 . . Alert | -11 -10 -9 -9 -8 -7 -7 -7 -7 -6 -6 -6 -6 -5 -5 -5 -5 -5 -4 -4 -4 -4 -4 -4 -3 -3 -2 -2 ------- Run | Yrd Mat Mat Min Mat Fac Low Low Dat Pro Fac Low Zio Pro Fac Upp Upp Zhi Pro Fac Ext Cet Arc Hub Res Tes Res Qua Maximum Alert Level 5 | . . 2 1 2 2 . . . . 3 . . . 4 . . . . 2 3 2 2 3 4 4 5 5 Low Security (%) 27 | 100 100 18 67 58 22 . . . . 26 . . . 33 . . . . 36 31 . . 32 . . . . Level 1 22 | . . 42 32 32 36 . . . . 13 . . . 3 . . . . 53 53 . 25 6 3 . . . Level 2 27 | . . 38 . 8 41 . . . . 59 . . . 13 . . . . 10 12 100 74 19 41 60 11 . Level 3 12 | . . . . . . . . . . . . . . 30 . . . . . 3 . . 41 41 16 41 . Level 4 5 | . . . . . . . . . . . . . . 18 . . . . . . . . . 13 22 11 . Level 5 2 | . . . . . . . . . . . . . . . . . . . . . . . . . . 20 100 High Security 1 | . . . . . . . . . . . . . . . . . . . . . . . . . . 13 . Max Security . | . . . . . . . . . . . . . . . . . . . . . . . . . . . . Peak Influence 3601 | 5 90 687 267 497 538 . . . . 741 . . . 1539 . . . . 429 810 608 492 936 1198 1341 3601 2039 Initial 2025 | . 3 16 261 13 223 . . . . 150 . . . 106 . . . . 30 193 447 204 126 498 662 749 2025 Average 512 | 1 31 364 160 175 305 . . . . 355 . . . 598 . . . . 225 281 539 423 530 754 794 1419 2019 Influence Increases 20409 | 15 280 1295 202 1097 890 30 5 . 420 1387 20 . 424 2417 50 45 . 320 1062 1328 441 338 1195 1234 1617 4238 59 Destroy 0b10 Robot/C 10740 | . 200 840 140 740 420 20 . . 280 560 . . 260 1320 40 40 . 280 560 680 160 80 360 520 1040 2180 20 Destroy 0b10 Robot/NC 1055 | 15 15 125 15 75 30 . 5 . 15 50 20 . 65 120 . 5 . 10 60 40 10 40 15 55 25 245 . Destroy Leader 2144 | . 42 220 30 200 148 10 . . 20 164 . . 30 304 10 . . 30 128 64 . . 84 72 146 442 . Allied During Kill 1389 | . . . 17 9 . . . . . . . . 39 . . . . . . 368 170 120 425 241 . . . Successful Hack 441 | . 8 22 . 25 54 . . . . 43 . . . 17 . . . . 26 10 . . 70 112 42 12 . Select Force Hacks 100 | . . . . . . . . . . . . . . . . . . . . . . . 100 . . . . Disable Machine 960 | . . 15 . 15 30 . . . . 315 . . . 165 . . . . 105 . 15 60 45 . 105 60 30 Anti-Garrison Action 200 | . . . . . 200 . . . . . . . . . . . . . . . . . . . . . . Destroy Structure 2480 | . . 28 . 18 8 . . . . 105 . . . 356 . . . . 168 136 86 38 96 114 184 1134 9 Advance Influence 150 | . . . . . . . . . . 150 . . . . . . . . . . . . . . . . . Partial Spotted 60 | . . . . . . . . . . . . . . 15 . . . . . . . . . . 45 . . Lose Combat Pursuer 690 | . 15 45 . 15 . . . . 105 . . . 30 120 . . . . 15 30 . . . 120 30 165 . Influence Decreases 18455 | 10 246 663 838 641 861 519 36 . 420 1122 285 . 255 1047 940 492 202 272 713 926 730 486 606 1007 1462 1970 1706 Entered New Map 6228 | . 2 23 410 22 268 193 7 . . . 99 . . 63 570 124 202 . 18 204 352 306 236 453 516 584 1576 Time Decay 9332 | 10 194 610 428 562 583 326 29 . 382 562 186 . 225 664 350 368 . 242 605 612 318 180 150 514 506 646 80 Lost Part 1185 | . 50 30 . 17 10 . . . 18 110 . . 10 160 20 . . 30 90 50 . . . . 140 400 50 Lost Ally 510 | . . . . 40 . . . . 20 . . . 20 10 . . . . . 60 60 . 220 40 . 40 . Purge Threat 1200 | . . . . . . . . . . 450 . . . 150 . . . . . . . . . . 300 300 . Squads Dispatched 138 | . 3 4 1 5 10 . . . 1 17 . . . 24 . . . . 10 3 . . 5 10 13 32 . Investigation 37 | . 2 4 1 2 4 . . . . 7 . . . 2 . . . . 2 . . . 4 7 1 1 . Extermination 26 | . . . . . 3 . . . . 5 . . . 7 . . . . 3 . . . . . 2 6 . Reinforcement 28 | . 1 . . 3 . . . . . 1 . . . 6 . . . . 4 2 . . 1 3 3 4 . Assault 36 | . . . . . . . . . 1 1 . . . 6 . . . . 1 1 . . . . 6 20 . Garrison 11 | . . . . . 3 . . . . 3 . . . 3 . . . . . . . . . . 1 1 . Intercept . | . . . . . . . . . . . . . . . . . . . . . . . . . . . . Searches Triggered . | . . . . . . . . . . . . . . . . . . . . . . . . . . . . Data Miner Redirects 8 | . . . . . . . . . . 2 . . . 2 . . . . 2 . . . . . 1 1 . Construction Impeded 5 | . . . . . . . . . . . . . . 2 . . . . 1 . . . . . 1 1 . Haulers Reinforced 6 | . . . . . . . . . . . . . . 1 . . . . 2 . . . . 1 1 1 . Active Scanning Responses . | . . . . . . . . . . . . . . . . . . . . . . . . . . . . Cargo Convoy Interrupts . | . . . . . . . . . . . . . . . . . . . . . . . . . . . . Stealth | -11 -10 -9 -9 -8 -7 -7 -7 -7 -6 -6 -6 -6 -5 -5 -5 -5 -5 -4 -4 -4 -4 -4 -4 -3 -3 -2 -2 --------- Run | Yrd Mat Mat Min Mat Fac Low Low Dat Pro Fac Low Zio Pro Fac Upp Upp Zhi Pro Fac Ext Cet Arc Hub Res Tes Res Qua Distress Signals 71 | . 1 5 . 2 . . . . 2 1 . . 30 2 . . . . 4 1 2 . . 9 3 9 . Communications Jammed . | . . . . . . . . . . . . . . . . . . . . . . . . . . . . Distress Signals . | . . . . . . . . . . . . . . . . . . . . . . . . . . . . Times Spotted 699 | . 16 54 7 48 21 1 . . 21 35 . . 10 99 3 2 . 9 38 34 9 9 13 35 57 170 8 Peak Tracking Total 15 | . 7 6 3 5 4 1 . . 5 6 . . 4 8 9 2 . 5 7 6 5 2 4 7 15 14 7 Tactical Retreats 35 | . 1 3 . 1 . . . . 4 . . . 2 7 . . . . 4 2 . . . 3 1 7 . Traps | -11 -10 -9 -9 -8 -7 -7 -7 -7 -6 -6 -6 -6 -5 -5 -5 -5 -5 -4 -4 -4 -4 -4 -4 -3 -3 -2 -2 ------- Run | Yrd Mat Mat Min Mat Fac Low Low Dat Pro Fac Low Zio Pro Fac Upp Upp Zhi Pro Fac Ext Cet Arc Hub Res Tes Res Qua Traps Triggered 16 | . 1 2 . 1 . . . . . . . . . 2 . . . . 1 4 . . 2 1 . 1 1 Indirectly . | . . . . . . . . . . . . . . . . . . . . . . . . . . . . Trap Hack Attempts . | . . . . . . . . . . . . . . . . . . . . . . . . . . . . Triggered . | . . . . . . . . . . . . . . . . . . . . . . . . . . . . Disarmed . | . . . . . . . . . . . . . . . . . . . . . . . . . . . . Reprogrammed . | . . . . . . . . . . . . . . . . . . . . . . . . . . . . Reused . | . . . . . . . . . . . . . . . . . . . . . . . . . . . . Traps Extracted . | . . . . . . . . . . . . . . . . . . . . . . . . . . . . Installed . | . . . . . . . . . . . . . . . . . . . . . . . . . . . . Triggered . | . . . . . . . . . . . . . . . . . . . . . . . . . . . . Machines | -11 -10 -9 -9 -8 -7 -7 -7 -7 -6 -6 -6 -6 -5 -5 -5 -5 -5 -4 -4 -4 -4 -4 -4 -3 -3 -2 -2 ---------- Run | Yrd Mat Mat Min Mat Fac Low Low Dat Pro Fac Low Zio Pro Fac Upp Upp Zhi Pro Fac Ext Cet Arc Hub Res Tes Res Qua Machines Disabled 72 | . . 1 . 1 2 . . . . 21 . . 5 11 . . . . 7 1 1 4 3 . 9 4 2 Max in Single Turn 20 | . . 1 . 1 2 . . . . 20 . . 1 4 . . . . 1 . 1 1 1 . 1 1 1 Garrison Access 7 | . . . . 1 1 . . . . . . . . . . . . . 1 . . . . 2 1 1 . Network Hub 3 | . . . . . . . . . . . . . . . . . . . . . . . 3 . . . . Machines Repaired . | . . . . . . . . . . . . . . . . . . . . . . . . . . . . Machines Dismantled . | . . . . . . . . . . . . . . . . . . . . . . . . . . . . Machines Sabotaged 2 | . . . . . . . . . . . . . . . . . . . . . . . 2 . . . . Overloaded Fab Kills . | . . . . . . . . . . . . . . . . . . . . . . . . . . . . Hacking | -11 -10 -9 -9 -8 -7 -7 -7 -7 -6 -6 -6 -6 -5 -5 -5 -5 -5 -4 -4 -4 -4 -4 -4 -3 -3 -2 -2 --------- Run | Yrd Mat Mat Min Mat Fac Low Low Dat Pro Fac Low Zio Pro Fac Upp Upp Zhi Pro Fac Ext Cet Arc Hub Res Tes Res Qua Machines Accessed 118 | . 3 11 1 12 10 . 1 4 . 14 1 . . 11 1 1 4 . 8 5 1 . 6 8 9 7 . Terminals 62 | . 2 9 . 7 5 . . . . 7 1 . . 4 . . . . 3 5 1 . 6 2 5 5 . Fabricators 8 | . . . . . 1 . . . . 2 . . . 1 . . . . 1 . . . . 1 2 . . Repair Stations 9 | . 1 1 . 1 . . . . . 2 . . . 1 . . . . 2 . . . . 1 . . . Recycling Units 9 | . . 1 . 1 1 . . . . 1 . . . 3 . . . . 1 . . . . 1 . . . Scanalyzers 8 | . . . . 2 1 . . . . 1 . . . 1 . . . . . . . . . 1 1 1 . Garrison Access 10 | . . . . 1 2 . . . . 1 . . . 1 . . . . 1 . . . . 2 1 1 . Total Hacks 429 | . 12 28 1 36 23 . 1 31 . 63 1 . . 30 1 1 17 . 19 11 1 . 33 40 50 30 . Successful 230 | . 7 11 1 21 12 . 1 31 . 34 1 . . 11 1 1 17 . 10 4 . . 20 20 19 8 . Failed 198 | . 5 16 . 15 11 . . . . 29 . . . 19 . . . . 9 7 1 . 13 20 31 22 . Catastrophic 64 | . 1 7 . 3 4 . . . . 6 . . . 6 . . . . 3 3 1 . 4 4 11 11 . Database Lockouts 1 | . . 1 . . . . . . . . . . . . . . . . . . . . . . . . . Manual 174 | . 9 20 . 25 7 . . . . 25 . . . 8 . . . . 3 4 1 . 28 8 18 18 . Terminals 236 | . 11 24 . 24 11 . . . . 30 1 . . 10 . . . . 7 11 1 . 33 12 37 24 . Fabricators 35 | . . . . . 2 . . . . 8 . . . 4 . . . . 5 . . . . 6 10 . . Repair Stations 25 | . 1 2 . 1 . . . . . 13 . . . 1 . . . . 3 . . . . 4 . . . Recycling Units 28 | . . 2 . 4 2 . . . . 7 . . . 9 . . . . 2 . . . . 2 . . . Scanalyzers 32 | . . . . 5 3 . . . . 3 . . . 4 . . . . . . . . . 12 2 3 . Garrison Access 21 | . . . . 2 5 . . . . 2 . . . 2 . . . . 2 . . . . 4 1 3 . Terminal Hacks 108 | . 2 3 1 4 2 . 1 31 . 11 1 . . 2 1 1 17 . 3 3 . . 11 1 8 5 . Record 17 | . . . . . . . . 11 . . 1 . . . . . 5 . . . . . . . . . . Part Schematic 20 | . . 1 . . . . . 12 . . . . . . . . 4 . . . . . 3 . . . . Robot Schematic 5 | . . . . . . . . 5 . . . . . . . . . . . . . . . . . . . Robot Analysis 4 | . . . . . . . . . . . . . . . . . 4 . . . . . . . . . . Prototype ID Bank 12 | . 1 1 . 1 . . . 3 . 2 . . . . . . 4 . . . . . . . . . . Open Door 5 | . . . 1 . . . 1 . . . . . . . 1 1 . . . . . . . . 1 . . Open DSF 1 | . . . . . . . . . . 1 . . . . . . . . . . . . . . . . . Level Access Points 1 | . . . . . . . . . . . . . . . . . . . . . . . 1 . . . . Branch Access Points 5 | . . 1 . . 1 . . . . 1 . . . . . . . . . . . . . 1 . 1 . Terminal Index 8 | . . . . 1 1 . . . . 1 . . . . . . . . 1 1 . . 1 . 1 1 . Garrison Index 1 | . . . . . . . . . . . . . . . . . . . . . . . 1 . . . . Alert Level 7 | . . . . 1 . . . . . 1 . . . . . . . . 1 1 . . . . 2 1 . Unreport Threat 8 | . . . . . . . . . . 3 . . . 1 . . . . . . . . . . 2 2 . Locate Traps 1 | . 1 . . . . . . . . . . . . . . . . . . . . . . . . . . Dispatch Records 1 | . . . . . . . . . . . . . . . . . . . . . . . 1 . . . . Hauler Manifests 3 | . . . . 1 . . . . . . . . . . . . . . 1 1 . . . . . . . Registered Components 4 | . . . . . . . . . . 1 . . . 1 . . . . . . . . 1 . 1 . . Zone Layout 5 | . . . . . . . . . . 1 . . . . . . . . . . . . 3 . 1 . . Fabricator Hacks 14 | . . . . . 2 . . . . 3 . . . 1 . . . . 2 . . . . 2 4 . . Network Status 1 | . . . . . . . . . . . . . . 1 . . . . . . . . . . . . . Load Schematic 8 | . . . . . 1 . . . . 2 . . . . . . . . 1 . . . . 1 3 . . Build 5 | . . . . . 1 . . . . 1 . . . . . . . . 1 . . . . 1 1 . . Repair Station Hacks 12 | . . 2 . . . . . . . 6 . . . . . . . . 2 . . . . 2 . . . Scan Component 6 | . . 1 . . . . . . . 3 . . . . . . . . 1 . . . . 1 . . . Repair 6 | . . 1 . . . . . . . 3 . . . . . . . . 1 . . . . 1 . . . Recycling Unit Hacks 11 | . . . . 1 1 . . . . 5 . . . 3 . . . . . . . . . 1 . . . Recycle Component 1 | . . . . . . . . . . 1 . . . . . . . . . . . . . . . . . Process 1 | . . . . . . . . . . 1 . . . . . . . . . . . . . . . . . Retrieve Matter 2 | . . . . . . . . . . 2 . . . . . . . . . . . . . . . . . Retrieve Components 7 | . . . . 1 1 . . . . 1 . . . 3 . . . . . . . . . 1 . . . Scanalyzer 20 | . . . . 4 3 . . . . 3 . . . 1 . . . . . . . . . 8 1 . . Insert Component 11 | . . . . 2 1 . . . . 2 . . . 1 . . . . . . . . . 4 1 . . Analyze 9 | . . . . 2 2 . . . . 1 . . . . . . . . . . . . . 4 . . . Garrison Access Hacks 6 | . . . . 1 . . . . . . . . . . . . . . 1 . . . . 2 1 1 . Seal Access 6 | . . . . 1 . . . . . . . . . . . . . . 1 . . . . 2 1 1 . Unauthorized Hacks 59 | . 5 6 . 11 4 . . . . 6 . . . 4 . . . . 2 1 . . 9 4 5 2 . Terminals 43 | . 4 6 . 9 2 . . . . 3 . . . 1 . . . . . 1 . . 9 2 4 2 . Track 3 | . . . . . . . . . . . . . . . . . . . . 1 . . 1 . 1 . . Botnet 21 | . 2 1 . 4 1 . . . . 2 . . . 1 . . . . . . . . 4 2 2 2 . Operators 2 | . 1 . . . . . . . . . . . . . . . . . . . . . . . 1 . . Skim 13 | . 1 5 . 5 1 . . . . 1 . . . . . . . . . . . . . . . . . Sabotage 4 | . . . . . . . . . . . . . . . . . . . . . . . 4 . . . . Fabricators 7 | . . . . . . . . . . 2 . . . 1 . . . . 2 . . . . 1 1 . . Prioritize 5 | . . . . . . . . . . 2 . . . . . . . . 1 . . . . 1 1 . . Haulers 2 | . . . . . . . . . . . . . . 1 . . . . 1 . . . . . . . . Repair Stations 3 | . 1 . . 1 . . . . . 1 . . . . . . . . . . . . . . . . . Patch 3 | . 1 . . 1 . . . . . 1 . . . . . . . . . . . . . . . . . Recycling Units 5 | . . . . 1 1 . . . . . . . . 2 . . . . . . . . . 1 . . . Recyclers 2 | . . . . . . . . . . . . . . 1 . . . . . . . . . 1 . . . Mask 3 | . . . . 1 1 . . . . . . . . 1 . . . . . . . . . . . . . Scanalyzers . | . . . . . . . . . . . . . . . . . . . . . . . . . . . . Garrison Access 1 | . . . . . 1 . . . . . . . . . . . . . . . . . . . . . . Jam 1 | . . . . . 1 . . . . . . . . . . . . . . . . . . . . . . Data Cores Recovered 3 | . . 1 . . . . . . . 1 . . . 1 . . . . . . . . . . . . . Used 1 | . . 1 . . . . . . . . . . . . . . . . . . . . . . . . . Hacking Detections 94 | . 2 11 . 9 10 . . . . 13 1 . . 11 . . . . 8 5 1 . 4 6 7 6 . Full Trace Events 20 | . . 3 . . 3 . . . . 6 . . . 2 . . . . 1 . . . . 3 1 1 . Feedback Events 3 | . . . . . . . . . . 2 . . . . . . . . . . . . . . . 1 . Corruption 1 | . . . . . . . . . . . . . . . . . . . . . . . . . . 1 . Hackware Fried 2 | . . . . . . . . . . 2 . . . . . . . . . . . . . . . . . Feedback Blocked . | . . . . . . . . . . . . . . . . . . . . . . . . . . . . Robot Schematics Acquired 8 | . . . . . . . . 5 . . . 3 . . . . . . . . . . . . . . . Robots Built . | . . . . . . . . . . . . . . . . . . . . . . . . . . . . Authchips . | . . . . . . . . . . . . . . . . . . . . . . . . . . . . Time . | . . . . . . . . . . . . . . . . . . . . . . . . . . . . Total Robot Build Rating . | . . . . . . . . . . . . . . . . . . . . . . . . . . . . Part Schematics Acquired 40 | . . 1 . 2 . . . 12 . 1 . 13 . . . . 4 . . . . . 3 2 2 . . Parts Built 7 | . . . . . 1 . . . . 1 . . . . . . . . 1 . . . . 2 2 . . Authchips 1 | . . . . . . . . . . . . . . . . . . . 1 . . . . . . . . Time 407 | . . . . . 102 . . . . 84 . . . . . . . . 93 . . . . 64 64 . . Total Part Build Rating 53 | . . . . . 8 . . . . 6 . . . . . . . . 7 . . . . 16 16 . . Parts Repaired 6 | . . 1 . . . . . . . 3 . . . . . . . . 1 . . . . 1 . . . Time 194 | . . 32 . . . . . . . 65 . . . . . . . . 56 . . . . 41 . . . Parts Recycled 1 | . . . . . . . . . . 1 . . . . . . . . . . . . . . . . . Recycled Matter 44 | . . . . . . . . . . 44 . . . . . . . . . . . . . . . . . Retrieved Matter 44 | . . . . . . . . . . 44 . . . . . . . . . . . . . . . . . Retrieved Components 28 | . . . . 9 2 . . . . 2 . . . 14 . . . . . . . . . 1 . . . Parts Scanalyzed 7 | . . . . 2 1 . . . . . . . . 1 . . . . . . . . . 3 . . . Part Schematics Acquired 5 | . . . . 2 . . . . . 1 . . . . . . . . . . . . . 2 . . . Parts Damaged 1 | . . . . . . . . . . . . . . . . . . . . . . . . 1 . . . Bothacking | -11 -10 -9 -9 -8 -7 -7 -7 -7 -6 -6 -6 -6 -5 -5 -5 -5 -5 -4 -4 -4 -4 -4 -4 -3 -3 -2 -2 ------------ Run | Yrd Mat Mat Min Mat Fac Low Low Dat Pro Fac Low Zio Pro Fac Upp Upp Zhi Pro Fac Ext Cet Arc Hub Res Tes Res Qua Used RIF Installer . | . . . . . . . . . . . . . . . . . . . . . . . . . . . . Robots Hacked . | . . . . . . . . . . . . . . . . . . . . . . . . . . . . Non-combat . | . . . . . . . . . . . . . . . . . . . . . . . . . . . . Combat . | . . . . . . . . . . . . . . . . . . . . . . . . . . . . Robot Hacks Applied . | . . . . . . . . . . . . . . . . . . . . . . . . . . . . Relay Couplers Released 12 | . . . . . 3 . . . . . . . . 3 . . . . 3 . . . . . . 3 . Machine Destruction 3 | . . . . . . . . . . . . . . . . . . . 3 . . . . . . . . Programmers 9 | . . . . . 3 . . . . . . . . 3 . . . . . . . . . . . 3 . Fabnet Peak Effective % . | . . . . . . . . . . . . . . . . . . . . . . . . . . . . Robots Rewired 12 | . . . . . . . . . 1 . . . 2 . . . . . . 9 . . . . . . . Allies Hacked . | . . . . . . . . . . . . . . . . . . . . . . . . . . . . Hacks Repelled . | . . . . . . . . . . . . . . . . . . . . . . . . . . . . Allies | -11 -10 -9 -9 -8 -7 -7 -7 -7 -6 -6 -6 -6 -5 -5 -5 -5 -5 -4 -4 -4 -4 -4 -4 -3 -3 -2 -2 -------- Run | Yrd Mat Mat Min Mat Fac Low Low Dat Pro Fac Low Zio Pro Fac Upp Upp Zhi Pro Fac Ext Cet Arc Hub Res Tes Res Qua Total Allies 36 | . . . 3 . . . . . 1 . . . 2 . . . . . . 25 5 . . . . . . Largest Group 24 | . . . 3 2 . . . . 1 . . . 2 . . . . . . 21 24 22 20 5 . . . Highest-Rated Group 1363 | . . . 71 40 . . . . 20 . . . 98 . . . . . . 967 1363 1171 974 282 . . . Highest-Rated Ally 159 | . . . 31 26 . . . . 20 . . . 49 . . . . . . 159 159 159 96 96 . . . Total Orders 1 | . . . . . . . . . . . . . . 1 . . . . . . . . . . . . . RETURN 1 | . . . . . . . . . . . . . . 1 . . . . . . . . . . . . . Ally Attacks 305 | . . . 3 . . . . . 1 . . . 24 . . . . . . 43 42 19 101 61 . 11 . Total Damage 8447 | . . . 42 . . . . . . . . . 1132 . . . . . . 1114 1168 412 2958 1443 . 178 . Kills 53 | . . . . . . . . . . . . . 8 . . . . . . 7 6 3 16 13 . . . Allies Corrupted . | . . . . . . . . . . . . . . . . . . . . . . . . . . . . Allies Melted . | . . . . . . . . . . . . . . . . . . . . . . . . . . . . Intel | -11 -10 -9 -9 -8 -7 -7 -7 -7 -6 -6 -6 -6 -5 -5 -5 -5 -5 -4 -4 -4 -4 -4 -4 -3 -3 -2 -2 ------- Run | Yrd Mat Mat Min Mat Fac Low Low Dat Pro Fac Low Zio Pro Fac Upp Upp Zhi Pro Fac Ext Cet Arc Hub Res Tes Res Qua Active Infowar (turns) 28622 | 6 315 . . 1280 531 723 936 257 1572 1963 779 1505 2601 2352 773 798 597 596 2048 2000 703 360 303 1412 1364 2730 118 Optics 15788 | . . . . . . 723 936 257 1572 1280 . 17 . . . . . . 2013 2000 703 360 303 1412 1364 2730 118 Sensors 16919 | . . . . 1 370 675 936 256 542 1357 779 1488 2601 2286 773 798 597 596 1494 103 . . . . 615 652 . Terrain 1329 | . . . . . . . . . . . . . . . . . . . . . . 229 10 . 182 908 . Seismic 1761 | 6 315 . . 1279 161 . . . . . . . . . . . . . . . . . . . . . . Triangulation 1255 | . . . . . . . . . . . 513 504 . 238 . . . . . . . . . . . . . Jamming 19 | . . . . . . . . . . . . . . . . . . . . . . . . . . 4 15 ECM 733 | . . . . . . . . . . . . . . . . . . . 669 . . . . . . 64 . Robot Analysis Total 4 | . . . . . . . . . . . . . . . . . 4 . . . . . . . . . . Derelict Logs Recovered 10 | . . . 1 . . 1 1 . 1 . 2 1 1 . 1 . . 1 . . . . . . . . . Drone Launches 4 | . . . . . . . . . . . . . . 2 . . . . . . . . . . . 2 . Drone Recoveries 1 | . . . . . . . . . . . . . . 1 . . . . . . . . . . . . . Exploration | -11 -10 -9 -9 -8 -7 -7 -7 -7 -6 -6 -6 -6 -5 -5 -5 -5 -5 -4 -4 -4 -4 -4 -4 -3 -3 -2 -2 ------------- Run | Yrd Mat Mat Min Mat Fac Low Low Dat Pro Fac Low Zio Pro Fac Upp Upp Zhi Pro Fac Ext Cet Arc Hub Res Tes Res Qua Turns Passed 36841 | 79 445 2033 1051 2930 1807 723 936 257 1572 2658 779 1554 2664 3356 790 842 614 658 2048 2000 703 360 303 1412 1364 2730 173 Spaces Moved 16657 | 44 261 1101 674 1149 653 282 366 100 594 1234 462 959 1273 1224 468 493 266 358 739 846 232 151 157 781 591 1092 107 Core 104 | 1 . . . . . . . . . . . . . . . . . . . . . . . . . 72 31 Treads 13327 | . 2 8 . 1028 653 282 366 100 594 1234 462 959 1273 1193 468 493 266 358 665 429 232 151 157 781 591 582 . Legs 522 | . . . . . . . . . . . . . . 31 . . . . 74 417 . . . . . . . Wheels 2704 | 43 259 1093 674 121 . . . . . . . . . . . . . . . . . . . . . 438 76 Hover . | . . . . . . . . . . . . . . . . . . . . . . . . . . . . Flight . | . . . . . . . . . . . . . . . . . . . . . . . . . . . . Fastest Speed 50 | 50 100 110 145 128 250 250 250 250 247 159 160 157 157 157 160 160 160 160 160 120 155 160 160 160 160 50 50 Average Speed 179 | 98 113 140 145 222 250 250 250 250 247 174 160 158 171 191 160 160 160 160 207 183 159 160 160 160 160 161 90 Slowest Speed 560 | 100 240 240 145 250 250 250 250 250 250 243 160 160 236 540 160 160 160 160 320 232 160 160 160 160 160 560 350 Overloaded Moves . | . . . . . . . . . . . . . . . . . . . . . . . . . . . . Propulsion Burnouts . | . . . . . . . . . . . . . . . . . . . . . . . . . . . . Robots Hopped . | . . . . . . . . . . . . . . . . . . . . . . . . . . . . Potential Cave-ins 2 | . . . . . . . . . . . . . . . . . . . 2 . . . . . . . . Cave-ins Triggered 2 | . . . . . . . . . . . . . . . . . . . . . . . . . 1 1 . Teleports 1 | . . . . . . . . . . . . . . . . . . . . . . . . . . 1 . Exploration Rate (%) 57 | 4 53 90 98 91 20 48 52 74 70 35 71 85 82 38 69 71 60 61 21 88 75 89 22 34 47 41 12 Regions Visited 27 Branch Regions 18 Pre-discovered Areas 13 | . . 2 . 2 . 1 . 1 . . 1 3 . . . . 3 . . . . . . . . . . Known Exits Taken 18 | . . 1 1 1 1 . . . 1 1 1 1 1 1 1 1 1 1 1 . . . 1 1 . 1 . Unknown Exits Taken 9 | 1 1 . . . . 1 1 1 . . . . . . . . . . . 1 1 1 . . 1 . . Scrap Searched 29 | . . . 4 . . 3 2 . 5 . 3 5 1 . 2 3 . 1 . . . . . . . . . Spaces Dug 190 | . . . . 13 . 9 . . . 14 4 1 13 40 . . . . 23 . 15 . 5 5 10 38 . Terrain Destroyed 1572 | . . 36 . 13 5 24 8 . 27 112 6 1 41 229 10 17 . 161 106 108 19 20 6 51 150 420 2 Melee . | . . . . . . . . . . . . . . . . . . . . . . . . . . . . Projectile 628 | . . . . . . . . . . 21 6 1 41 168 10 17 . 15 106 23 19 20 6 51 53 69 2 AOE 864 | . . 36 . 13 5 24 8 . 27 91 . . . 61 . . . 146 . 85 . . . . 95 273 . Terrain Rammed . | . . . . . . . . . . . . . . . . . . . . . . . . . . . . Walls Destroyed . | . . . . . . . . . . . . . . . . . . . . . . . . . . . . Machines Disabled . | . . . . . . . . . . . . . . . . . . . . . . . . . . . . Actions | -11 -10 -9 -9 -8 -7 -7 -7 -7 -6 -6 -6 -6 -5 -5 -5 -5 -5 -4 -4 -4 -4 -4 -4 -3 -3 -2 -2 --------- Run | Yrd Mat Mat Min Mat Fac Low Low Dat Pro Fac Low Zio Pro Fac Upp Upp Zhi Pro Fac Ext Cet Arc Hub Res Tes Res Qua Total 20961 | 61 340 1381 721 1404 763 293 388 108 649 1594 489 998 1533 1816 499 525 457 404 1000 1201 542 243 182 862 803 1540 165 Wait 1262 | . 22 64 26 79 11 . . . 3 158 3 . 73 180 15 15 154 9 58 42 224 58 3 . 7 29 29 Move 16631 | 43 260 1100 673 1148 652 281 365 99 593 1233 461 958 1272 1223 467 492 265 357 738 845 231 150 157 780 590 1091 107 Hop . | . . . . . . . . . . . . . . . . . . . . . . . . . . . . Pick Up 245 | 3 5 37 2 25 9 . 6 . . 22 5 7 4 25 3 2 7 2 11 11 6 7 . 14 15 17 . Fast Attach 224 | 7 3 3 . 1 4 . . 4 1 7 . 10 12 38 . 2 10 . 12 16 13 . . 8 21 42 10 Attach 104 | . 4 6 . 5 2 . . . 2 14 2 . . 13 . 2 1 3 8 9 . . . 4 11 18 . Detach 46 | . 1 . . 1 . . . . . 4 1 2 . 9 . . 2 . 2 7 4 . . 3 4 6 . Swap 410 | . 4 27 1 16 15 6 4 1 11 33 2 4 19 71 6 2 4 10 42 21 12 3 9 3 40 44 . Drop 357 | . 2 27 4 24 14 1 8 4 1 14 1 15 17 50 4 2 14 1 11 30 25 8 . 17 23 32 8 Fire 1455 | 8 38 117 15 99 56 5 5 . 35 103 14 2 126 206 4 8 . 21 112 58 27 17 12 33 92 236 6 Melee 5 | . . . . . . . . . . . . . . . . . . . . . . . . . . . 5 Ram . | . . . . . . . . . . . . . . . . . . . . . . . . . . . . Kick . | . . . . . . . . . . . . . . . . . . . . . . . . . . . . Crush 28 | . 1 . . 6 . . . . . 6 . . . 1 . . . 1 6 . . . 1 . . 6 . Escape Stasis 29 | . . . . . . . . . . . . . . . . . . . . 10 . . . . . 19 . Rewire 165 | . . . . . . . . . 3 . . . 10 . . . . . . 152 . . . . . . . Trap . | . . . . . . . . . . . . . . . . . . . . . . . . . . . . Miscellaneous . | . . . . . . . . . . . . . . . . . . . . . . . . . . . . Route ------- -11/Scrapyard -10/Materials (discovered 4 exits: *Mat x2 / [*Min x2]) -9/Materials (discovered 5 exits: *Mat x3 / *Min x2) -9/Mines (discovered 2 exits: *Mat x2) -8/Materials (discovered 3 exits: *Fac x3) -7/Factory (discovered 4 exits: *Fac / Sto / *Low x2) -7/Lower Caves -7/Lower Caves (discovered 2 exits: *Fac / *Dat) -7/Data Miner -6/Proximity Caves -6/Factory (discovered 3 exits: *Fac / *Low x2) -6/Lower Caves (discovered 2 exits: *Low / *Zio) -6/Zion -5/Proximity Caves -5/Factory (discovered 4 exits: *Fac x3 / *Upp) -5/Upper Caves -5/Upper Caves -5/Zhirov -4/Proximity Caves -4/Factory (discovered 3 exits: *Res x2 / *Ext) -4/Extension (discovered 2 exits: *Res / *Cet) -4/Cetus (discovered 2 exits: *Res / [*Arc]) -4/Archives (discovered 3 exits: *Res / *Hub x2) -4/Hub_04(d) (discovered 4 exits: *Res x4) -3/Research (discovered 4 exits: *Res / *Arm / *Tes x2) -3/Testing -2/Research (discovered 3 exits: [*Acc] / *Qua x2) -2/Quarantine History --------- Turn | Location | Event 48 | -11/Scrapyard | Discovered new exit (range 16) 80 | -11/Scrapyard | Entered Materials 107 | -10/Materials | Discovered new exit (range 16) 328 | -10/Materials | Build established: Mutant 328 | -10/Materials | Discovered new exit (range 7) 351 | -10/Materials | Discovered new exit (range 15) 398 | -10/Materials | Core integrity fell below 50% 438 | -10/Materials | Lost 5 parts (2p1n1u1w) 497 | -10/Materials | Discovered new exit (range 6) 525 | -10/Materials | Entered another Materials area 525 | -9/Materials | Evolved 2 slots: Weapon x2 808 | -9/Materials | Build established: Scavenger-Gunner 865 | -9/Materials | Discovered new exit (range 9) 1006 | -9/Materials | Discovered new exit (range 15) 1312 | -9/Materials | Build established: Gunner 1324 | -9/Materials | Discovered new exit (range 5) 1479 | -9/Materials | Identified exit to Mines 1951 | -9/Materials | Repaired Autogun 1961 | -9/Materials | Discovered new exit (range 16) 2017 | -9/Materials | Learned Storage emergency access door positions 2197 | -9/Materials | Learned location of Recycling (-7) 2227 | -9/Materials | Learned Storage emergency access door positions 2265 | -9/Materials | Learned location of 3 exits from Materials 2312 | -9/Materials | Identified exit to Materials 2324 | -9/Materials | Central database locked down 2558 | -9/Materials | Entered Mines 2609 | -9/Mines | Found a damaged Exp. Sensor Array with a note attached 2613 | -9/Mines | Found Prototype Device 2679 | -9/Mines | Learned Materials stockpile data 2796 | -9/Mines | Discovered exit to Materials (range 12) 2963 | -9/Mines | Found a Scrap Suit stashed away for nefarious purposes 2967 | -9/Mines | Found Scrap Suit 3023 | -9/Mines | Received a Mining Laser from a helpful Derelict 3132 | -9/Mines | Discovered exit to Materials (range 12) 3147 | -9/Mines | Met a Derelict shopkeep closing up shop 3609 | -9/Mines | Entered Materials 3609 | -8/Materials | Accompanied by 2 allies 3609 | -8/Materials | Evolved 2 slots: Propulsion x1, Utility x1 3609 | -8/Materials | Identified Exp. Sensor Array 3610 | -8/Materials | Identified exit to Factory 3614 | -8/Materials | Led the pair of lost Derelicts to an unsafe place 4028 | -8/Materials | Build established: Tank 6027 | -8/Materials | Learned 2 Lower Caves zone layouts 6043 | -8/Materials | Learned 2 Lower Caves zone layouts 6051 | -8/Materials | Learned location of 1 exit from Recycling 6052 | -8/Materials | Learned Factory trap positions 6059 | -8/Materials | Learned Factory stockpile data 6077 | -8/Materials | Learned 4 Lower Caves zone layouts 6105 | -8/Materials | Learned location of Storage (-7) 6539 | -8/Materials | Entered Factory 6539 | -7/Factory | Evolved 2 slots: Propulsion x1, Utility x1 6540 | -7/Factory | Loaded intel: 111 trap records 6810 | -7/Factory | Discovered new exit (range 14) 7203 | -7/Factory | Identified exit to Storage 7203 | -7/Factory | Identified exit to Lower Caves 7448 | -7/Factory | Garrison activated, responded to threat 7895 | -7/Factory | Discovered new exit (range 16) 8217 | -7/Factory | Fabricated Exp. Sensor Array? 8346 | -7/Factory | Entered Lower Caves 8461 | -7/Lower Caves | Encountered a Warlord checkpoint 8498 | -7/Lower Caves | Learned location of Extension (-4) 8633 | -7/Lower Caves | Build established: Skirmisher 8767 | -7/Lower Caves | Discovered new exit (range 15) 9069 | -7/Lower Caves | Entered another Lower Caves area 9173 | -7/Lower Caves | Discovered new exit (range 5) 9466 | -7/Lower Caves | Learned location of 1 exit from Factory 9606 | -7/Lower Caves | Discovered new exit (range 8) 10005 | -7/Lower Caves | Entered Data Miner 10008 | -7/Data Miner | Discovered new exit (range 6) 10045 | -7/Data Miner | Met Data Miner 10120 | -7/Data Miner | Learned location of Section 7 (-2) 10120 | -7/Data Miner | Acquired the access code to Warlord's prototype stash 10155 | -7/Data Miner | Received God Mode back door access code from Data Miner 10262 | -7/Data Miner | Entered Proximity Caves 10390 | -6/Proximity Caves | Spotter reported a threat 10545 | -6/Proximity Caves | Attracted the attention of an 0b10 outpost 11149 | -6/Proximity Caves | Build established: Tank 11377 | -6/Proximity Caves | Identified exit to Factory 11431 | -6/Proximity Caves | Attracted the attention of an 0b10 checkpoint 11820 | -6/Proximity Caves | Spotted B-75 Beast 11834 | -6/Proximity Caves | Entered Factory 11834 | -6/Factory | Evolved 2 slots: Propulsion x1, Utility x1 11835 | -6/Factory | Identified exit to Lower Caves 11973 | -6/Factory | Identified exit to DSF 12123 | -6/Factory | Build established: Derelict-Tank 12417 | -6/Factory | Garrison activated, responded to threat 12661 | -6/Factory | Found Hvy. Reflective Plating 12701 | -6/Factory | Build established: Tank 12884 | -6/Factory | First assault squad dispatched 12908 | -6/Factory | Incoming assault squad redirected 13189 | -6/Factory | Lost 4 parts (1n1u2w) 13372 | -6/Factory | Incoming investigation squad redirected 13438 | -6/Factory | Build established: Gunner 13604 | -6/Factory | Discovered new exit (range 15) 13903 | -6/Factory | Repaired Autogun 13935 | -6/Factory | Repaired Enh. Autogun 13955 | -6/Factory | Repaired Adv. Treads 14086 | -6/Factory | Build established: Hacker-Gunner 14180 | -6/Factory | Fabricated Combat Drone Bay? 14448 | -6/Factory | Imp. System Shield fried by hacking feedback 14448 | -6/Factory | Mak. Hacking Suite fried by hacking feedback 14492 | -6/Factory | Entered Lower Caves 14779 | -6/Lower Caves | Build established: Skirmisher 15137 | -6/Lower Caves | Learned Factory interactive machine intel 15154 | -6/Lower Caves | Discovered new exit (range 13) 15177 | -6/Lower Caves | Identified exit to Lower Caves 15254 | -6/Lower Caves | A Derelict revealed a hidden shortcut to a safe place 15269 | -6/Lower Caves | Identified exit to Zion 15271 | -6/Lower Caves | Entered Zion 15358 | -6/Zion | System corruption cleaned by Quarantine Array 15473 | -6/Zion | Discovered new exit (range 11) 15633 | -6/Zion | Given A8's code to call for help 15803 | -6/Zion | Found Prototype Processor 15803 | -6/Zion | Identified Exp. Core Analyzer 15950 | -6/Zion | Learned location of Warlord (-4) 15995 | -6/Zion | Learned Factory emergency access door positions 16071 | -6/Zion | Build established: Gunner 16335 | -6/Zion | Learned location of Armory (-3) 16454 | -6/Zion | Given the Hacking Drone Bay 16455 | -6/Zion | Found Prototype Device 16455 | -6/Zion | Identified Hacking Drone Bay 16527 | -6/Zion | Met Imprinter 16821 | -6/Zion | Identified exit to Proximity Caves 16825 | -6/Zion | Entered Proximity Caves 17000 | -5/Proximity Caves | Learned Factory emergency access door positions 17592 | -5/Proximity Caves | Spotted B-75 Beast 18167 | -5/Proximity Caves | Lost 3 allies 18198 | -5/Proximity Caves | Discovered new exit (range 14) 18388 | -5/Proximity Caves | Found Prototype Launcher 18388 | -5/Proximity Caves | Identified Scatter Rocket Array 18843 | -5/Proximity Caves | Lost 3 allies 19487 | -5/Proximity Caves | Identified exit to Factory 19489 | -5/Proximity Caves | Entered Factory 19489 | -5/Factory | Evolved 2 slots: Propulsion x1, Utility x1 19491 | -5/Factory | Loaded intel: 54 interactive machine locations 20684 | -5/Factory | Discovered new exit (range 4) 20727 | -5/Factory | Lost 5 parts (4n1w) 20728 | -5/Factory | Destroyed 8 combat bots 20734 | -5/Factory | Identified exit to Factory 20851 | -5/Factory | Destroyed 8 combat bots 20939 | -5/Factory | Build established: Scavenger-Gunner 20989 | -5/Factory | First assault squad dispatched 21148 | -5/Factory | Discovered exit to Factory (range 5) 21224 | -5/Factory | Incoming assault squad redirected 21251 | -5/Factory | Lost 3 parts (1n2w) 21423 | -5/Factory | Discovered exit to Factory (range 13) 21810 | -5/Factory | Build established: Gunner 22199 | -5/Factory | Garrison activated, responded to threat 22240 | -5/Factory | Discovered new exit (range 15) 22262 | -5/Factory | Identified exit to Upper Caves 22731 | -5/Factory | Incoming assault squad redirected 22845 | -5/Factory | Entered Upper Caves 22940 | -5/Upper Caves | Build established: Tank 23481 | -5/Upper Caves | Learned 12 Factory zone layouts 23624 | -5/Upper Caves | Discovered new exit (range 8) 23634 | -5/Upper Caves | Identified exit to Upper Caves 23635 | -5/Upper Caves | Attracted the attention of an 0b10 outpost 23635 | -5/Upper Caves | Entered another Upper Caves area 24349 | -5/Upper Caves | Discovered new exit (range 15) 24374 | -5/Upper Caves | Identified exit to Zhirov 24477 | -5/Upper Caves | Entered Zhirov 24480 | -5/Zhirov | Discovered new exit (range 3) 24508 | -5/Zhirov | Met Zhirov 24543 | -5/Zhirov | Learned location of Quarantine (-2) 24543 | -5/Zhirov | Learned location of Testing (-3) 24543 | -5/Zhirov | Learned location of Command (-1) 24553 | -5/Zhirov | Zhirov requested help retrieving the SGEMP Prototype 24578 | -5/Zhirov | Found Alien Artifact 24578 | -5/Zhirov | Identified Integrated Dissipator 24578 | -5/Zhirov | Installed Integrated Dissipator, increased core heat dissipation (+20) 24788 | -5/Zhirov | Build established: Mutant 25000 | -5/Zhirov | Found Alien Artifact 25087 | -5/Zhirov | Identified exit to Proximity Caves 25091 | -5/Zhirov | Entered Proximity Caves 25355 | -4/Proximity Caves | Lost 3 parts (1n1u1w) 25390 | -4/Proximity Caves | Build established: Tank 25465 | -4/Proximity Caves | Learned Research garrison access intel 25725 | -4/Proximity Caves | Discovered exit to Factory (range 7) 25749 | -4/Proximity Caves | Entered Factory 25749 | -4/Factory | Evolved 2 slots: Power x1, Utility x1 25750 | -4/Factory | Identified exit to Extension 25751 | -4/Factory | Identified exit to Research 25876 | -4/Factory | Fabricated Exp. Optical Array (x1) 26527 | -4/Factory | Destroyed 7 combat bots 26707 | -4/Factory | Found Prototype Device 26707 | -4/Factory | Identified Exp. ECM Suite 26929 | -4/Factory | Incoming investigation squad redirected 26980 | -4/Factory | Build established: Scavenger-Skirmisher 27086 | -4/Factory | Repaired Hvy. Treads 27749 | -4/Factory | First assault squad dispatched 27775 | -4/Factory | Incoming assault squad redirected 27797 | -4/Factory | Entered Extension 27858 | -4/Extension | Build established: Scavenger-Tank 27936 | -4/Extension | Rescued a captive Derelict 27936 | -4/Extension | Rescued a captive Derelict 28351 | -4/Extension | Spotted B-86 Titan 28535 | -4/Extension | Build established: Scavenger-Gunner 29070 | -4/Extension | Spotted B-86 Titan 29085 | -4/Extension | Allies destroyed B-86 Titan 29092 | -4/Extension | Allies destroyed B-86 Titan 29191 | -4/Extension | Rescued a captive Derelict 29247 | -4/Extension | Disrupted transfer network 29263 | -4/Extension | Rescued A7 29313 | -4/Extension | Rescued a captive Derelict 29314 | -4/Extension | Rescued a captive Derelict 29367 | -4/Extension | Rescued a captive Derelict 29368 | -4/Extension | Rescued a captive Derelict 29375 | -4/Extension | Rescued a captive Derelict 29376 | -4/Extension | Rescued a captive Derelict 29427 | -4/Extension | Rescued a captive Derelict 29428 | -4/Extension | Rescued a captive Derelict 29449 | -4/Extension | Rescued a captive Derelict 29450 | -4/Extension | Rescued a captive Derelict 29508 | -4/Extension | Rescued a captive Derelict 29509 | -4/Extension | Rescued a captive Derelict 29514 | -4/Extension | Destroyed 7 combat bots 29704 | -4/Extension | System corruption reached 10% 29707 | -4/Extension | Discovered exit to Research (range 10) 29709 | -4/Extension | Discovered new exit (range 6) 29797 | -4/Extension | First assault squad dispatched 29797 | -4/Extension | Entered Cetus 29797 | -4/Cetus | Accompanied by 20 allies (A7) 29802 | -4/Cetus | Acquired a Cetus Manufacturing Module code from A7 29803 | -4/Cetus | Spotted Cetus Guard 29804 | -4/Cetus | Spotted Cetus Guard 29804 | -4/Cetus | Allies destroyed Cetus Guard 29807 | -4/Cetus | Spotted Cetus Guard 29809 | -4/Cetus | Spotted Cetus Guard 29810 | -4/Cetus | Destroyed Cetus Guard 29821 | -4/Cetus | Allies destroyed Cetus Guard 29828 | -4/Cetus | Destroyed Cetus Guard 29985 | -4/Cetus | Started Cetus Manufacturing Module 30000 | -4/Cetus | Escorted A7 to Cetus Mainframe 30010 | -4/Cetus | Manufactured an Enhanced Grunt 30035 | -4/Cetus | Manufactured an Enhanced Grunt 30060 | -4/Cetus | Manufactured an Enhanced Grunt 30085 | -4/Cetus | Manufactured an Enhanced Grunt 30110 | -4/Cetus | Manufactured an Enhanced Grunt 30123 | -4/Cetus | Discovered new exit (range 22) 30154 | -4/Cetus | Spotted Cetus Guard 30155 | -4/Cetus | Spotted Cetus Guard 30158 | -4/Cetus | Spotted Cetus Guard 30159 | -4/Cetus | Destroyed Cetus Guard 30162 | -4/Cetus | Spotted Cetus Guard 30166 | -4/Cetus | Destroyed Cetus Guard 30167 | -4/Cetus | Allies destroyed Cetus Guard 30173 | -4/Cetus | Discovered exit to Research (range 22) 30174 | -4/Cetus | Allies destroyed Cetus Guard 30195 | -4/Cetus | Met Revision 17 30257 | -4/Cetus | Found Prototype Device 30257 | -4/Cetus | Identified Exp. Thermal Shield 30463 | -4/Cetus | Build established: Scavenger-Tank 30500 | -4/Cetus | Entered Archives 30500 | -4/Archives | Accompanied by 22 allies (A7) 30505 | -4/Archives | Received a hacking code to weaken MAIN.C 30530 | -4/Archives | Discovered new exit (range 22) 30545 | -4/Archives | Discovered exit to Research (range 18) 30660 | -4/Archives | Discovered new exit (range 18) 30860 | -4/Archives | Entered Hub_04(d) 30860 | -4/Hub_04(d) | Accompanied by 20 allies 30910 | -4/Hub_04(d) | Build established: Scavenger-Gunner 30945 | -4/Hub_04(d) | Network Hub disabled 30947 | -4/Hub_04(d) | Network Hub disabled 30958 | -4/Hub_04(d) | Network Hub disabled 31049 | -4/Hub_04(d) | Lost 9 allies 31163 | -4/Hub_04(d) | Entered Research 31163 | -3/Research | Accompanied by 5 allies 31163 | -3/Research | Evolved 2 slots: Weapon x2 31164 | -3/Research | Loaded intel: 4 garrison access locations 31190 | -3/Research | Lost 3 allies 31190 | -3/Research | Identified Transdimensional Reconstructor 31363 | -3/Research | Revision forces began assault on 0b10 31407 | -3/Research | Met up with Revision 17++ 31412 | -3/Research | Build established: Scavenger-Executioner 31523 | -3/Research | Repaired Broken Neutron Missile Launcher 31553 | -3/Research | Found Prototype Launcher 31553 | -3/Research | Identified Mni. Smartbomb Launcher 31695 | -3/Research | Fabricated Hyp. Railgun? 31765 | -3/Research | Lost 3 allies 31808 | -3/Research | Identified exit to Armory 31808 | -3/Research | Identified exit to Testing 31863 | -3/Research | Research terminal network offline 31872 | -3/Research | Discovered new exit (range 21) 31914 | -3/Research | Spotted Striker 31915 | -3/Research | Spotted Striker 31930 | -3/Research | Destroyed Striker 31954 | -3/Research | Allies destroyed Striker 32149 | -3/Research | Spotted Executioner 32152 | -3/Research | Spotted Striker 32157 | -3/Research | Destroyed Striker 32161 | -3/Research | Destroyed Executioner 32198 | -3/Research | Found Prototype Device 32198 | -3/Research | Identified Adv. Kinecellerator 32205 | -3/Research | Found Exp. Core Analyzer 32290 | -3/Research | Spotted Striker 32317 | -3/Research | Lost 5 allies 32326 | -3/Research | Spotted Striker 32329 | -3/Research | Destroyed Striker 32377 | -3/Research | Spotted Striker 32382 | -3/Research | Destroyed Striker 32575 | -3/Research | Entered Testing 32614 | -3/Testing | Found Prototype Energy Cannon 32614 | -3/Testing | Identified Potential Cannon 32734 | -3/Testing | Spotted PD-OSNBQ14W9F 32759 | -3/Testing | Destroyed PD-OSNBQ14W9F 32773 | -3/Testing | Found Prototype Launcher 32825 | -3/Testing | First assault squad dispatched 32931 | -3/Testing | Found Prototype Ballistic Cannon 32989 | -3/Testing | Incoming assault squad redirected 33098 | -3/Testing | Found Prototype Protection 33098 | -3/Testing | Identified Med. Regenerative Plating 33105 | -3/Testing | Found Prototype Protection 33110 | -3/Testing | Found Med. Regenerative Plating 33150 | -3/Testing | Identified SHELL Armor 33228 | -3/Testing | Garrison activated, responded to threat 33448 | -3/Testing | Identified Ragnarok Missile Launcher 33619 | -3/Testing | Discovered new exit (range 21) 33632 | -3/Testing | Fabricated Hyp. Railgun? 33633 | -3/Testing | Crushed by falling debris 33633 | -3/Testing | System corruption reached 10% 33658 | -3/Testing | Destroyed 21 combat bots 33664 | -3/Testing | Lost 5 parts (1p1u3w) 33939 | -3/Testing | Entered Research 33939 | -2/Research | Evolved 2 slots: Utility x2 34347 | -2/Research | Discovered new exit (range 18) 34498 | -2/Research | Spotted B-90 Cyclops 34865 | -2/Research | Found Prototype Reactor 34865 | -2/Research | Identified Vortex Chain Reactor 34957 | -2/Research | Found Prototype Launcher 34957 | -2/Research | Identified Enh. Gamma Bomb Array 35189 | -2/Research | First assault squad dispatched 35447 | -2/Research | System corruption reached 10% 35465 | -2/Research | Garrison activated, responded to threat 35552 | -2/Research | Destroyed 14 combat bots 35606 | -2/Research | Warped through subspace 35635 | -2/Research | Lost 5 parts (1p2n2w) 35717 | -2/Research | Incoming assault squad redirected 35813 | -2/Research | Destroyed 8 combat bots 35867 | -2/Research | Identified Perforator 35895 | -2/Research | Lost 5 parts (3n2w) 35944 | -2/Research | Identified exit to Quarantine 36290 | -2/Research | High security lockdown imminent 36370 | -2/Research | High security lockdown engaged 36372 | -2/Research | Destroyed 10 combat bots 36534 | -2/Research | Spotted Investigator 36537 | -2/Research | Scanned by Researcher 36538 | -2/Research | Destroyed Investigator 36592 | -2/Research | Crushed by falling debris 36606 | -2/Research | Core integrity fell below 50% 36611 | -2/Research | Destroyed 36 combat bots 36669 | -2/Research | Entered Quarantine 36675 | -2/Quarantine | Lost 14 parts (3p2n6u3w) 36714 | -2/Quarantine | Found Alien Slashing Weapon 36714 | -2/Quarantine | Identified Sigix Broadsword 36740 | -2/Quarantine | Found Alien Energy Cannon 36740 | -2/Quarantine | Identified Core Cannon 36817 | -2/Quarantine | Core integrity fell below 20% 36842 | -2/Quarantine | Destroyed by Y-72 Warden with Quantum Rifle Last Messages --------------- 36828_ Penetrated by Slug. 36828_ Slug penetrates Wall. 36829_ System corrupted: Heat flow error (+205). 36830_ Acquired Core Cannon. 36830_ K-01 Serf collects debris. 36831_ Hds. Centrium Wheel destroyed. 36831_ Particle Reactor destroyed. 36832_ Dropped Core Cannon. 36834_ Hds. Centrium Wheel destroyed. 36834_ R-10 Processor suffers critical hit (Destroy). 36834_ R-10 Processor destroyed. 36837_ Dropped Linear Accelerator. 36839_ Slug penetrates Reaction Chamber. 36840_ Triggered Blade Trap. 36840_ Massive razor-sharp blades shoot up from within the floor. 36840_ Hds. Centrium Wheel severed. 36840_ Graphene Brace severed. 36841_ Adv. Transmission Jammer destroyed. Map ----- +----------------------------------------------------+ | ?????????????????????????????????????????????????? | | ?????????????????????????????????????????????????? | | ??????#+?????????????????????????????????????????? | | ??????+ ?????????????????????????????????????????? | | ??????# ????????????????????????????????????????? | | ??????# ???????????????????????????????????????? | | ??????# ???????????????????????????????????????? | | ??????# ?????###+######+##????????????????????? | | ??????# ###### """"" #????????????????????? | | ??????+ ""T"" #????????????????????? | | ??????# #????????????????????? | | ??????? #????????????????????? | | ????????? #????????????????????? | | ?????????? #?????? ? ???????????? | | ???????????# ### ???????????? | | ????????#### ???????????? | | ????????# m ???????????????? | | ????????# """ """ """ ""?????????????? | | ????????# ######s """ """ """ """????????????? | | ????????????????# """ """ """ """ ""?????????? | | ????????????????# ?????????? | | ??????########### ????????? | | ??????# ]# ????????? | | ??????# # ????????? | | ??????# "" ==#] ! ###########??????????? | | ??????# " "!%YY = @ #????????????????????? | | ??????# " *!!# ########????????????????????? | | ??????# """ # ###########?????????????????? | | ??????# "" # # #?????????????????? | | ??????# # # #?????????????????? | | ??????#####+##### # """" #?????????????????? | | ???????# # # " "" #?????????????????? | | ???????# """ + + """ #?????????????????? | | ???????# """ # # "" #?????????????????? | | ???????# """ # # "" #?????????????????? | | ???????# # # #?????????????????? | | ???????# """ # ###########?????????????????? | | ???????# """ /# #???????????????????????????? | | ???????# """ # #???????????????????????????? | | ???????# # #???????????????????????????? | | ???????########## #???????????????????????????? | | ????????????????# #???????????????????????????? | | ????????????????# #???????????????????????????? | | ????????????????######???????????????????????????? | | ?????????????????????????????????????????????????? | | ?????????????????????????????????????????????????? | | ?????????????????????????????????????????????????? | | ?????????????????????????????????????????????????? | | ?????????????????????????????????????????????????? | | ?????????????????????????????????????????????????? | +----------------------------------------------------+ Best States ------------- Heat Dissipation 107 Coolant Potential 100 Energy Generation 55 Energy Capacity 700 Matter Stores 402 Matter Capacity 600 Sight Range 23 Robot Scan Range 20 Terrain Scan Range 24 Terrain Scan Density 210 ECM Strength 3 Jamming Range 16 Base Temperature (-) 150 EM Shielding 4 Armor Coverage 1125 Resistance: KI 10 Resistance: TH 30 Weapon Shielding 66 Weapon Cycling 20 Evasion (%) 50 Targeting Accuracy 16 Target Analysis 8 Core Analysis 8 Armor Integrity Analysis 40 Recoil Reduction 6 Kinecelleration 50 Offensive Hacking 24 Defensive Hacking 14 Authchip Count 2 Item Schematics ----------------- Hcp. Storage Unit | -9/Materials | Hacked Exp. Sensor Array | -8/Materials | Scanalyzed Hpw. Tractor Beam | -8/Materials | Scanalyzed Combat Drone Bay | -7/Data Miner | Free Lgt. Regenerative Plating | -7/Data Miner | Free Biomechanical Wings | -7/Data Miner | Free Thermal Defense Suite | -7/Data Miner | Free Force Rifle | -7/Data Miner | Free Nuclear Pulse Array | -7/Data Miner | Free Adv. Drone Bay | -7/Data Miner | Free Mass Driver | -7/Data Miner | Free Hvy. Pick | -7/Data Miner | Free Imp. Coolant Injector | -7/Data Miner | Free Hyp. Gauss Cannon | -7/Data Miner | Free Matter Neutralizer | -7/Data Miner | Free Graphene Brace | -6/Factory | Scanalyzed Field Propulsion Drive | -6/Zion | Archive Imp. Proton Missile Launcher | -6/Zion | Archive Imp. Particle Charger | -6/Zion | Archive Adv. Field Recycling Unit | -6/Zion | Archive Adv. Thermal Shield | -6/Zion | Archive Drone Bay | -6/Zion | Archive Fission Core | -6/Zion | Archive Imp. Actuator Array | -6/Zion | Archive Imp. Plasma Cutter | -6/Zion | Archive Hvy. Machine Gun | -6/Zion | Archive Imp. Remote Datajack | -6/Zion | Archive Force Field | -6/Zion | Archive Adv. Coolant Injector | -6/Zion | Archive Assault Drone Bay | -5/Zhirov | Free Exp. Heat Sink | -5/Zhirov | Free Exp. Optical Array | -5/Zhirov | Free Imp. Arc Thrower | -5/Zhirov | Free Exp. Targeting Computer | -4/Hub_04(d) | Hacked Weapon Mount | -4/Hub_04(d) | Hacked Hyp. Railgun | -4/Hub_04(d) | Hacked Neutron Missile Launcher | -3/Research | Scanalyzed Centrium Heavy Treads | -3/Research | Scanalyzed Centrium Greatsword | -3/Testing | Archive Mni. Smartbomb Launcher | -3/Testing | Archive Robot Schematics ------------------ G-47 Trooper | -7/Data Miner | Free M-14 Sweeper | -7/Data Miner | Free H-66 Slayer | -7/Data Miner | Free W-25 Informer | -7/Data Miner | Free R-10 Processor | -7/Data Miner | Free S-27 Virus | -6/Zion | Archive K-01 Serf | -6/Zion | Archive H-77 Assassin | -6/Zion | Archive Fabricated ------------ Exp. Sensor Array | x1 | -7/Factory Combat Drone Bay | x1 | -6/Factory Exp. Optical Array | x1 | -4/Factory | Authchip Hyp. Railgun | x2 | -3/Research Hyp. Railgun | x2 | -3/Testing Repaired ---------- Autogun | 38% | -9/Materials Autogun | 12% | -6/Factory Enh. Autogun | 16% | -6/Factory Adv. Treads | 27% | -6/Factory Hvy. Treads | 1% | -4/Factory Neutron Missile Launcher | 83% | -3/Research | Broken Alien Tech Used ----------------- Integrated Dissipator Transdimensional Reconstructor Sigix Broadsword Core Cannon Achievements -------------- None Challenges ------------ None Game ------ Seed BoltWarpMatrix Manual? 0 Play Time 04:54:43 Cumulative 138.6 hours Start 2025.08.22 @ 23:25:31 End 2025.08.23 @ 04:44:01 Sessions 2 Manual Loads 0 Difficulty Rogue Special Mode None Game No. 60 Rogue 60 Adventurer 0 Explorer 0 Win Type - Total 3 Types 1/0/2/0/0/0/0/0/0/0 Lore% 75 Gallery% 63 Achievement% 78 Wizard Run 0 Options --------- Layout 2 ASCII 0 Keyboard 1 Movement Vi Keybinds 0 Fullscreen 1 Font 28/SwanstonBold Map View 50x52 Zoom Use 0% Tactical HUD 1 Map Filters NONE Filters NONE Steam 1 RUN: 9bdf136a-f3eb-4e51-a498-1f05c74d9b38